Cogmind - Beta 13 X1 @@@ ROGUE MODE // 2023.09.12 @ 15:02:01 Player: Terminus Result: Escaped singularity! Performance ------------- Evolutions (9) 4500 Regions Visited (35) 7000 Robots Destroyed (706) 3530 Value Destroyed (35882) 35882 Prototype IDs (290) 5800 Alien Tech Used (10) 2000 Bonus (56179) 56179 TOTAL SCORE: 114891 Bonus ------- High Alert Combat Kills 8291 Follower Combat Kills 1061 Met Data Miner 300 Met Imprinter 300 Met Zhirov 300 Met Warlord at Base 500 MAIN.C Attacked Warlord 500 Warlord Defense Kills 1564 Used Core Reset Matrix 3000 Scanned by Researcher 1000 Destroyed MAIN.C Guards 500 Met MAIN.C 5000 Destroyed MAIN.C Shell 5000 Destroyed MAIN.C 10000 Met Architect 300 Destroyed A8 300 Destroyed A6 400 Destroyed Architect 15000 Win 3000 Friendly Fire -137 Cogmind --------- Core Integrity 154/1600 Matter 300/300 Energy 99/100 System Corruption 0% Temperature Cool (0) Movement Core (50) Location Near Former Tau Ceti IV Parts ------- > --- POWER (4) -------- (None) > --- PROPULSION (2) --- (None) > --- UTILITY (14) ----- (None) > --- WEAPON (5) ------- (None) > --- INVENTORY (5) ---- Compact Wheel Experimental Energy Well (600) Experimental Targeting Computer AEGIS Remote Shield Enhanced Quantum Rifle Peak State ------------ > --- POWER ------------ Vortex Chain Reactor Vortex Chain Reactor > --- PROPULSION ------- Compact Wheel High-density Centrium Wheel > --- UTILITY ---------- Huge Storage Unit Experimental Targeting Computer Experimental Targeting Computer Experimental Targeting Computer Experimental Core Analyzer Experimental Armor Integrity Analyzer Improved Particle Accelerator Advanced Weapon Cycler Advanced Phase Shifter SHELL Armor Graphene Brace AEGIS Remote Shield > --- WEAPON ----------- Heavy Quantum Rifle Heavy Quantum Rifle Heavy Quantum Rifle Heavy Quantum Rifle Heavy Quantum Rifle > --- INVENTORY -------- Zero-point Reactor Zero-point Reactor Zero-point Reactor Compact Wheel Compact Wheel Experimental Energy Well Experimental Energy Well Experimental Energy Well Experimental Targeting Computer Experimental Targeting Computer Experimental Core Analyzer AEGIS Remote Shield Transdimensional Reconstructor High-powered Transdimensional Reconstructor Microwarp Drive Enhanced Gamma Rifle Enhanced Quantum Rifle Sigix Sheargun Sigix Sheargun Sigix Sheargun Sigix Sheargun Cooled Nova Cannon Hypervelocity Multirail Hypervelocity Multirail [Rating: 252] Favorites ----------- Power Vortex Chain Reactor Engine Cooled Ion Engine Power Core Enhanced Fission Core Reactor Vortex Chain Reactor Propulsion Armored Wheel Treads Light Treads Wheel Armored Wheel Utility Huge Storage Unit Device Experimental Sensor Array Storage Huge Storage Unit Processor Advanced Signal Interpreter Hackware Advanced Hacking Suite Protection Improved Medium Armor Plating Artifact Microwarp Drive Weapon Gatling Laser Energy Gun Gatling Laser Energy Cannon Particle Cannon Ballistic Gun Hypervelocity Multirail Launcher Micro-nuke Launcher Impact Weapon Powered Hammer Piercing Weapon CR-A16's Behemoth Slayer Build | -11 -10 -10 -9 -9 -9 -8 -8 -7 -7 -7 -7 -6 -6 -6 -6 -6 -5 -5 -5 -5 -5 -4 -4 -4 -4 -4 -3 -3 -3 -2 -2 -2 -1 -1 -1 ------- Run | Jun Mat Min Mat Min Exi Min Mat Fac Low Low Dat Pro Fac Low Low Zio Pro Fac Upp Upp Zhi Pro Fac Upp Upp War Pro Res Qua Res Tes Sec Acc Com Ac0 Slots Evolved 18 | . . . 2 . . . 2 2 . . . . 2 . . . . 2 . . . . 2 . . . . 2 . 2 . . 2 . . Power 3 | . . . . . . . . . . . . . 1 . . . . . . . . . 1 . . . . . . . . . 1 . . Propulsion . | . . . . . . . . . . . . . . . . . . . . . . . . . . . . . . . . . . . . Utility 12 | . . . 1 . . . 2 2 . . . . 1 . . . . 1 . . . . 1 . . . . 2 . 1 . . 1 . . Weapon 3 | . . . 1 . . . . . . . . . . . . . . 1 . . . . . . . . . . . 1 . . . . . Parts Attached 883 | 6 7 6 28 5 4 5 32 47 6 16 7 3 75 3 9 11 28 30 16 8 7 4 24 . 2 28 6 23 78 29 100 85 35 82 28 Power 56 | 1 . 1 2 . . . 1 2 . 1 . . 4 . 1 . 3 5 . . 2 . 3 . . 5 . 1 3 4 5 4 1 5 2 Engine 15 | 1 . 1 2 . . . 1 1 . 1 . . 2 . 1 . 2 2 . . 1 . . . . . . . . . . . . . . Core 13 | . . . . . . . . 1 . . . . 1 . . . 1 3 . . . . 2 . . 5 . . . . . . . . . Reactor 28 | . . . . . . . . . . . . . 1 . . . . . . . 1 . 1 . . . . 1 3 4 5 4 1 5 2 Propulsion 79 | 2 . 3 5 3 . 1 6 1 1 . . . 4 . . . 3 . . . . . 1 . . . . . 4 1 6 7 9 20 2 Treads 23 | 1 . 1 2 2 . . 5 . 1 . . . . . . . . . . . . . . . . . . . . . 1 3 2 5 . Leg . | . . . . . . . . . . . . . . . . . . . . . . . . . . . . . . . . . . . . Wheel 56 | 1 . 2 3 1 . 1 1 1 . . . . 4 . . . 3 . . . . . 1 . . . . . 4 1 5 4 7 15 2 Hover . | . . . . . . . . . . . . . . . . . . . . . . . . . . . . . . . . . . . . Flight . | . . . . . . . . . . . . . . . . . . . . . . . . . . . . . . . . . . . . Utility 411 | 1 4 . 10 . 1 . 14 33 5 7 2 1 39 1 6 3 10 10 5 5 3 2 18 . . 18 6 14 44 13 48 43 13 22 10 Device 251 | . 2 . 4 . 1 . 7 15 3 4 . 1 26 . 3 1 7 4 1 2 2 1 14 . . 12 3 11 26 5 30 35 12 12 7 Storage 13 | 1 2 . . . . . 1 . . . . . . . . . . . . . . . 1 . . . . . 2 . 3 . . 3 . Processor 24 | . . . . . . . . 2 . . 1 . 1 . . . . . . . . . . . . 3 1 1 2 2 1 2 1 5 2 Hackware 8 | . . . . . . . 1 . . . . . 1 . . 1 . 1 . . . . . . . 1 . . 2 1 . . . . . Protection 108 | . . . 6 . . . 5 16 2 3 1 . 11 1 3 1 3 5 4 3 1 1 3 . . 2 2 2 12 5 14 1 . . 1 Artifact 7 | . . . . . . . . . . . . . . . . . . . . . . . . . . . . . . . . 5 . 2 . Weapon 337 | 2 3 2 11 2 3 4 11 11 . 8 5 2 28 2 2 8 12 15 11 3 2 2 2 . 2 5 . 8 27 11 41 31 12 35 14 Energy Gun 230 | 1 . . 9 1 3 2 10 8 . 4 5 1 18 1 1 8 9 11 8 3 1 2 1 . 1 1 . 4 20 7 24 19 4 29 14 Energy Cannon 65 | . 3 2 1 . . . . 1 . 2 . 1 7 1 . . . 4 . . . . 1 . 1 4 . 3 6 2 14 6 4 2 . Ballistic Gun 11 | 1 . . . . . . . . . . . . . . . . . . . . . . . . . . . . . . 3 4 1 2 . Ballistic Cannon . | . . . . . . . . . . . . . . . . . . . . . . . . . . . . . . . . . . . . Launcher 19 | . . . 1 1 . 2 1 . . 2 . . 2 . 1 . 2 . 2 . . . . . . . . . 1 2 . 1 . 1 . Special Weapon . | . . . . . . . . . . . . . . . . . . . . . . . . . . . . . . . . . . . . Impact Weapon 3 | . . . . . . . . 2 . . . . 1 . . . . . . . . . . . . . . . . . . . . . . Slashing Weapon . | . . . . . . . . . . . . . . . . . . . . . . . . . . . . . . . . . . . . Piercing Weapon 9 | . . . . . . . . . . . . . . . . . 1 . 1 . 1 . . . . . . 1 . . . 1 3 1 . Special Melee Weapon . | . . . . . . . . . . . . . . . . . . . . . . . . . . . . . . . . . . . . Unidentified Prototypes 62 | . . . 2 . . . 1 1 . . . . 3 . . . . 5 . . 2 . 3 . . 9 . . 9 3 13 4 2 5 . Corrupted Parts 1 | . . . . . . . . . . . . . . . . . . . . . . 1 . . . . . . . . . . . . . System Corruption 10 | . . . . . . . . . . . . . . . . . . . . . . 10 . . . . . . . . . . . . . Parts Lost 94 | . . 3 2 . . . 10 5 . 2 . . 8 1 1 . 8 1 1 4 . . 1 . . . . 2 13 . 4 6 6 4 12 Power 8 | . . . . . . . 1 . . 1 . . . . 1 . 1 . . . . . . . . . . . 2 . 1 . . . 1 Propulsion 19 | . . 2 1 . . . 2 . . . . . 1 . . . 2 . . . . . 1 . . . . . 4 . 1 3 . . 2 Utility 38 | . . . 1 . . . 4 3 . . . . 3 1 . . 1 1 1 2 . . . . . . . 2 4 . 2 1 4 3 5 Weapon 29 | . . 1 . . . . 3 2 . 1 . . 4 . . . 4 . . 2 . . . . . . . . 3 . . 2 2 1 4 Highest Loss Streak 7 | . . 3 1 . . . 3 3 . 2 . . 3 1 1 . 6 1 1 2 . . 1 . . . . 2 7 . 1 1 4 1 4 To Critical Strikes 1 | . . . . . . . . . . . . . . . . . . . . . . . . . . . . . . . . . . . 1 Average Slot Usage (%) 94 | . 99 100 99 100 66 100 99 99 100 99 100 100 96 100 99 99 99 99 98 99 100 100 99 100 100 99 94 89 85 88 88 84 80 82 83 Engine 5 | . 14 14 10 11 11 11 9 6 7 6 7 7 5 6 12 13 12 3 5 5 5 5 5 5 5 4 . . . . . . . . . Core 1 | . . . . . . . . . . . . . 2 . . . . 6 5 5 5 5 10 10 10 10 15 13 1 . . . . . . Reactor 3 | . . . . . . . . . . . . . 4 6 . . . . . . . . . . . . . . 7 11 12 7 8 8 8 Treads 3 | . 14 14 11 11 11 11 9 7 7 7 7 7 . . . . . . . . . . . . . . . . . . . . 1 . . Wheel 9 | . 14 13 11 11 11 11 9 7 7 7 7 7 12 13 13 13 12 11 11 11 11 11 9 10 10 10 10 9 8 8 7 6 5 6 8 Device 17 | . 13 14 10 11 10 11 17 22 23 22 19 22 17 20 19 19 19 16 16 16 17 16 20 21 21 20 14 14 18 16 10 11 17 18 15 Storage 6 | . 14 14 11 11 11 11 9 7 7 7 7 7 6 6 6 6 6 5 5 5 5 5 5 5 5 5 5 4 4 4 4 4 4 4 4 Processor 9 | . . . . . . . . 7 7 7 9 15 13 13 13 13 13 11 11 11 11 11 10 10 10 10 10 7 7 8 12 13 12 19 24 Hackware 6 | . . . . . . . 6 7 7 7 4 . 4 6 6 6 6 10 11 11 11 11 10 10 10 10 10 9 8 12 13 13 9 1 . Protection 6 | . . . 10 11 11 11 11 7 6 7 10 7 7 6 6 6 6 5 5 5 5 5 5 5 5 5 5 9 5 3 4 3 4 4 4 Energy Gun 19 | . . . 24 32 . 32 26 22 23 21 23 23 18 19 19 19 19 21 21 23 22 23 19 21 17 19 21 16 16 20 19 18 13 19 19 Energy Cannon 2 | . 27 28 8 . . . . . . 1 . . 1 . . . . 1 . . . . 1 . 3 1 . 1 1 . 1 1 1 . . Naked Turns 3 | . . . . . . . . . . . . . . . . . . . . . . . . . . . . . . . . . . . 3 Heaviest Build 245 | 13 94 94 105 103 103 103 115 117 116 124 123 123 140 132 133 126 136 141 140 141 135 135 175 168 171 171 161 179 202 198 239 229 245 245 239 Greatest Support 90 | 10 10 16 10 10 10 10 12 12 12 12 12 12 28 28 28 28 28 24 24 24 24 24 24 24 24 24 24 24 24 22 90 90 90 90 36 Greatest Overweight (x) 65 | 1 9 9 10 10 10 10 10 9 9 10 10 10 5 4 4 4 6 5 5 5 5 5 7 6 7 7 6 7 15 8 65 20 21 12 6 Average Overweight (x) 7 | . 5 7 9 10 9 10 8 8 8 9 9 9 4 4 4 4 4 5 4 5 4 5 6 6 6 6 6 6 7 7 8 7 8 6 5 Largest Inventory Capacity 25 | 8 25 25 25 25 25 25 25 25 25 25 25 25 25 25 25 25 25 25 25 25 25 25 25 25 25 25 25 25 25 25 25 25 25 25 25 Average Capacity 24 | 6 20 25 25 25 25 25 25 25 25 25 25 25 25 25 25 25 25 25 25 25 25 25 25 25 25 25 25 25 25 25 25 25 25 25 24 Most Carried 25 | 4 25 25 25 25 25 22 25 25 25 24 24 24 25 25 25 25 25 25 25 25 24 25 25 25 25 25 25 25 25 25 25 25 25 25 25 Average Carried 24 | 2 18 24 24 24 24 22 24 24 24 22 23 23 24 24 24 24 23 24 24 22 22 24 24 25 25 24 24 24 24 24 24 23 23 24 23 Final Capacity 25 | 8 25 25 25 25 25 25 25 25 25 25 25 25 25 25 25 25 25 25 25 25 25 25 25 25 25 25 25 25 25 25 25 25 25 25 5 Final Carried 25 | 4 25 25 25 25 22 22 24 24 24 24 23 23 25 24 25 25 25 25 25 22 24 25 25 25 25 25 25 25 25 25 25 23 23 25 5 Class Distribution -------------------- 16% | Scavenger-Skirmisher 12% | Hacker-Skirmisher 12% | Tank 9% | Mutant 8% | Skirmisher 8% | Hacker-Tank 8% | Scavenger-Gunner 8% | Scavenger-Tank 5% | Scavenger-Mutant 5% | Hacker-Mutant Dominant Class ---------------- Mutant | -10/Materials Mutant | -10/Mines Tank | -9/Materials Tank | -9/Mines Mutant | -9/Exiles Tank | -8/Mines Tank | -8/Materials Scavenger-Skirmisher | -7/Factory Scavenger-Skirmisher | -7/Lower Caves Scavenger-Skirmisher | -7/Lower Caves Scavenger-Skirmisher | -7/Data Miner Scavenger-Skirmisher | -6/Proximity Caves Scavenger-Skirmisher | -6/Factory Skirmisher | -6/Lower Caves Skirmisher | -6/Lower Caves Skirmisher | -6/Zion Skirmisher | -5/Proximity Caves Hacker-Skirmisher | -5/Factory Hacker-Skirmisher | -5/Upper Caves Hacker-Skirmisher | -5/Upper Caves Hacker-Skirmisher | -5/Zhirov Hacker-Skirmisher | -4/Proximity Caves Scavenger-Tank | -4/Factory Scavenger-Tank | -4/Upper Caves Scavenger-Mutant | -4/Upper Caves Scavenger-Tank | -4/Warlord Hacker-Tank | -3/Proximity Caves Hacker-Tank | -3/Research Hacker-Skirmisher | -3/Quarantine Hacker-Tank | -2/Research Hacker-Skirmisher | -2/Testing Hacker-Skirmisher | -2/Section 7 Generator-Gunner | -1/Access Scavenger-Gunner | -1/Command Scavenger-Gunner | -1/Access_0 Resources | -11 -10 -10 -9 -9 -9 -8 -8 -7 -7 -7 -7 -6 -6 -6 -6 -6 -5 -5 -5 -5 -5 -4 -4 -4 -4 -4 -3 -3 -3 -2 -2 -2 -1 -1 -1 ----------- Run | Jun Mat Min Mat Min Exi Min Mat Fac Low Low Dat Pro Fac Low Low Zio Pro Fac Upp Upp Zhi Pro Fac Upp Upp War Pro Res Qua Res Tes Sec Acc Com Ac0 Matter Collected 11543 | 263 70 50 322 169 . 190 439 442 156 228 . 110 745 38 176 110 384 90 440 170 80 20 100 196 32 280 51 216 1096 367 1264 1227 809 953 260 Remotely . | . . . . . . . . . . . . . . . . . . . . . . . . . . . . . . . . . . . . Salvage Created 40248 | 73 762 212 2589 155 . 298 2193 1098 62 518 . 171 1916 99 612 95 1638 426 420 500 309 231 505 301 56 565 102 1107 2723 577 3156 4090 3737 6934 2018 Parts 1775 | 2 36 5 138 11 . 12 101 43 2 14 . 3 70 11 18 3 41 7 12 10 3 6 21 4 1 12 7 36 124 19 153 197 217 300 136 Haulers Intercepted 29 | . 2 . 6 . . . 4 2 . . . . 5 . . . . 2 . . . . . . . . . 2 2 . 2 . 2 . . Recyclers Shooed 12 | . 1 . . . . . 1 . . . . 1 4 . . . 1 . . . . . . . . . . 1 1 . . 1 1 . . Parts Field Recycled . | . . . . . . . . . . . . . . . . . . . . . . . . . . . . . . . . . . . . Retrieved Matter . | . . . . . . . . . . . . . . . . . . . . . . . . . . . . . . . . . . . . Parts Self-Destructed 145 | . . . . . . . . . 2 9 . 8 . 11 12 . 58 . 16 10 1 4 . 4 2 . 8 . . . . . . . . Prevented 21 | . . . . . . . . . . . . . . . . . 13 . . . . 5 . . 2 . 1 . . . . . . . . Kills | -11 -10 -10 -9 -9 -9 -8 -8 -7 -7 -7 -7 -6 -6 -6 -6 -6 -5 -5 -5 -5 -5 -4 -4 -4 -4 -4 -3 -3 -3 -2 -2 -2 -1 -1 -1 ------- Run | Jun Mat Min Mat Min Exi Min Mat Fac Low Low Dat Pro Fac Low Low Zio Pro Fac Upp Upp Zhi Pro Fac Upp Upp War Pro Res Qua Res Tes Sec Acc Com Ac0 Combat Hostiles Destroyed 532 | . 15 5 50 5 . 10 37 15 1 14 . 4 28 4 13 2 24 2 10 9 . 6 8 3 1 10 3 8 33 14 29 42 34 74 19 Guns 372 | . . . 32 3 . 7 33 12 1 6 . 4 22 4 8 2 7 2 1 9 . 3 8 2 1 9 3 6 24 5 25 26 31 58 18 Cannons 40 | . 15 5 13 . . . . . . . . . . . . . . . . . . . . . . . . . 3 . . 3 1 . . AOE 75 | . . . 4 2 . 3 4 . . 8 . . 4 . 4 . 13 . 8 . . . . . . . . . 2 7 . 5 . 11 . Classes Destroyed 31 | 1 4 3 7 . . . 2 2 . . . . 1 . 1 1 . . . . . 1 . 1 . 2 . 1 2 . 1 1 . . . Worker 38 | . . . 8 . . . 5 2 . . . . 5 . . . . . . . . . . . . . . 2 3 . 7 . 4 2 . Builder 23 | . . . 2 1 . . 1 . . . . . 1 . . . . . . . . . . . . . . . 2 1 3 4 8 . . Tunneler 9 | . . 1 . 1 . 1 1 . . . . . 1 . . . . . . . . . . . . . . . . . . . 4 . . Hauler 29 | . 2 . 6 . . . 4 2 . . . . 5 . . . . 2 . . . . . . . . . 2 2 . 2 . 2 . . Recycler 24 | 1 1 1 1 . . 1 3 3 . . . . . . . . 2 1 . . . . . . . . . 1 . . 1 2 2 4 . Minesweeper 1 | . . . . . . . . . . . . . . . . . . . . . . . . 1 . . . . . . . . . . . Mechanic 4 | . . . . . . . . 1 . . . . 1 . . . 1 . . . . . . . . . . . . . . . 1 . . Operator 8 | . . . 2 . . . 2 . . . . . 2 . . . . . . . . . . . . . . . 2 . . . . . . Drone 2 | . . . . . . . . . . . . . . . . . . . . . . 2 . . . . . . . . . . . . . Watcher 41 | . 2 . 4 . . . 5 3 . . . . 2 . . . 2 1 . . . . 2 . . . . 4 3 . 2 5 2 4 . Swarmer 88 | . 3 . 7 1 . 7 11 3 . 2 . 3 6 3 2 . 7 . 4 . . . . . . . 3 . 1 8 . . 5 12 . Grunt 178 | . 12 1 29 2 . 2 13 . . 9 . 1 14 . 8 . 7 1 3 9 . 2 . 1 1 3 . 3 15 . 4 6 15 17 . Brawler 12 | . . . 2 1 . 1 . . . 1 . . . . 1 . 2 . 1 . . . . . . 1 . . . . 1 . 1 . . Duelist 12 | . . . 1 1 . . . . . 1 . . 1 . . . 4 . . . . . . . . . . . . . . 3 . 1 . Protector 7 | . . . 2 . . . . . . . . . . . . . . . . . . . . . . . . . . . . 1 1 3 . Researcher 3 | . . . . . . . . . . . . . . . . . . . . . . . . . . . . . 2 . . 1 . . . Sentry 32 | . . . 9 . . . 6 3 1 1 . . 1 . 1 . 4 . 1 . . . . . . . . 1 . . . 1 . 3 . Demolisher 5 | . . 2 . . . . . . . . . . . . . . . . . . . . . . . 2 . . . 1 . . . . . Specialist 20 | . . . . . . . 6 . . . . . . . . . . . . . . . . . . 2 . . . . . 6 . 6 . Hunter 30 | . . . . . . . 1 3 . . . . 1 . . . . . . . . 2 2 2 . . . . 2 1 4 2 4 6 . Programmer 93 | . . . . . . . . 6 . . . . 4 1 1 . . 1 . . . . 6 . . . . 2 13 . 19 15 6 19 . Heavy 1 | . . . . . . . . . . . . . . . . . . . . . . . . . . . . 1 . . . . . . . Q-Series 4 | . . . . . . . . . . . . . . . . . . . . . . . . . . . . . 2 . . 2 . . . Behemoth 7 | . . . . . . . . . . . . . 1 . . . . . 1 . . . . . . . . 1 . . . 1 2 1 . S7 Guard 1 | . . . . . . . . . . . . . . . . . . . . . . . . . . . . . . . . 1 . . . M Guard 2 | . . . . . . . . . . . . . . . . . . . . . . . . . . . . . . . . . . 2 . Enhanced Grunt 11 | . . . . . . . . . . . . . . . . . . . . . . . . . . . . . . . . . . . 11 Enhanced Hunter 5 | . . . . . . . . . . . . . . . . . . . . . . . . . . . . . . . . . . . 5 Combat Programmer 2 | . . . . . . . . . . . . . . . . . . . . . . . . . . . . . . . . . . 2 . Striker 2 | . . . . . . . . . . . . . . . . . . . . . . . . . . 1 . . . 1 . . . . . Executioner 6 | . . . . . . . . . . . . . . . . . . . . . . . . . . 1 . . . 3 . 2 . . . Alpha 7 2 | . . . . . . . . . . . . . . . . . . . . . . . . . . . . . . . . 2 . . . Fortress 1 | . . . . . . . . . . . . . . . . . . . . . . . . . . . . . . . 1 . . . . Decomposer 3 | . . . . . . . . . . 2 . . . . 1 . . . . . . . . . . . . . . . . . . . . Packrat 2 | . . . . . . . . . . . . 1 . . . . . . . . . . . 1 . . . . . . . . . . . Samaritan 1 | . . . . . . . . . . . . . . . 1 . . . . . . . . . . . . . . . . . . . . Tinkerer 1 | . . . . . . . . . . . . . . . . 1 . . . . . . . . . . . . . . . . . . . Assembled 2 | . . 2 . . . . . . . . . . . . . . . . . . . . . . . . . . . . . . . . . Thug 1 | . . . . . . . . . . . . . . . . 1 . . . . . . . . . . . . . . . . . . . Best Kill Streak 21 | 1 3 3 8 4 . 5 7 7 1 7 . 3 7 3 5 1 9 2 4 5 . 2 2 2 1 3 3 4 6 5 4 8 9 21 6 Combat Bots Only 20 | . 3 3 7 3 . 4 4 4 1 7 . 3 3 3 5 1 9 1 4 5 . 2 2 2 1 3 3 3 4 4 4 6 7 20 6 Max Kills in Single Turn 4 | 1 1 1 3 2 . 2 4 1 1 2 . 2 3 3 2 1 3 1 2 2 . 1 1 1 1 2 2 2 2 3 3 3 3 4 2 Gunslinging 2 | . . . . . . . . . . . . 1 . 2 1 . 1 . . 1 . . . . . 1 1 . . 1 . . 1 2 1 Exploded 3 | . . . 3 1 . 2 3 . . 2 . . 3 . 2 . 3 . 2 . . . . . . . . . 1 3 . 3 . 3 . Melee . | . . . . . . . . . . . . . . . . . . . . . . . . . . . . . . . . . . . . Uniques/NPCs Destroyed 6 | . . . . . . . . . . . . . . . . 1 . . . . . . . . . . . . . . . . . 2 3 Imprinter (-6/Zion) MAIN.C Shell (-1/Command) MAIN.C (-1/Command) A8 (-1/Access_0) A6 (-1/Access_0) Architect (-1/Access_0) Combat | -11 -10 -10 -9 -9 -9 -8 -8 -7 -7 -7 -7 -6 -6 -6 -6 -6 -5 -5 -5 -5 -5 -4 -4 -4 -4 -4 -3 -3 -3 -2 -2 -2 -1 -1 -1 -------- Run | Jun Mat Min Mat Min Exi Min Mat Fac Low Low Dat Pro Fac Low Low Zio Pro Fac Upp Upp Zhi Pro Fac Upp Upp War Pro Res Qua Res Tes Sec Acc Com Ac0 Damage Taken 31573 | . 325 463 1011 89 . 232 2097 1335 147 483 . 94 1684 172 535 20 1082 36 339 881 . 256 309 158 . 347 44 808 2437 320 1571 3468 1904 4838 4088 Core 3321 | . 77 106 143 33 . 28 315 92 10 60 . . 139 18 94 20 90 . 31 53 . 30 36 18 . 61 . 93 230 24 153 423 44 407 493 Absorbed by Shields 15225 | . . . . . . . . . . . . . . . . . . . . . . . 328 166 . 357 45 408 1975 334 1189 2334 361 3753 3975 Reduced by Siege Mode 140 | . . . . . . . . . . . . . . . . . . . . . . . . . . . . . . . . 35 13 92 . Redirected to Shielding 178 | . . . . . . . . . . . . . . . . . . . . . . . . . . 12 . 61 83 . . . . . 22 Ignored by Resistances 796 | . . . . . . . . . . . . . . . . . . . . . . . . . . . . . 171 . 253 103 23 246 . Regen/Repaired (Parts) 11315 | . . . 172 . . . 162 276 . . . . 284 . . 189 . . . . . . 286 . . 280 . . 401 . 318 1621 1063 5181 1082 Core Remaining (%) 58 | 100 . 26 . . . 49 42 . . . . 76 . . . . 57 . . . . 88 . . . . 90 . 66 . . 45 . . 9 Volleys Fired 1607 | 1 39 22 123 11 . 20 129 54 3 42 . 6 102 5 22 7 51 18 16 14 . 12 35 9 2 31 2 48 122 23 96 209 101 129 103 Largest 5 | 2 2 2 3 3 . 3 3 3 3 3 . 3 3 3 3 3 3 4 4 4 . 4 4 4 4 4 4 4 4 5 5 5 5 5 5 Hottest 568 | 60 136 136 176 168 . 168 209 220 220 220 . 220 245 230 230 230 230 295 295 305 . 290 290 290 290 290 290 290 351 430 568 502 423 494 480 Shots Fired 4845 | 2 78 44 336 29 . 55 375 150 11 76 . 18 248 14 60 21 132 48 34 56 . 48 101 37 6 70 8 118 393 82 332 595 228 542 498 Gun 4268 | 2 . . 253 27 . 51 372 144 11 51 . 18 221 13 57 21 124 41 24 56 . 48 88 37 4 54 8 89 340 73 282 525 209 527 498 Cannon 517 | . 78 44 81 . . . . 6 . 21 . . 24 1 . . . 7 . . . . 13 . 2 16 . 29 47 4 50 67 19 8 . Launcher 60 | . . . 2 2 . 4 3 . . 4 . . 3 . 3 . 8 . 10 . . . . . . . . . 6 5 . 3 . 7 . Special . | . . . . . . . . . . . . . . . . . . . . . . . . . . . . . . . . . . . . Kinetic 120 | 1 . . . . . . . . . . . . . . . . . . . . . . . . . . . . . . 10 25 84 . . Thermal 3715 | 1 78 44 334 27 . 51 372 150 11 72 . 18 245 14 57 21 124 48 24 56 . 48 101 37 6 70 8 118 387 77 322 388 95 157 154 Explosive 60 | . . . 2 2 . 4 3 . . 4 . . 3 . 3 . 8 . 10 . . . . . . . . . 6 5 . 3 . 7 . Electromagnetic 20 | . . . . . . . . . . . . . . . . . . . . . . . . . . . . . . . . . . 18 2 Slashing 930 | . . . . . . . . . . . . . . . . . . . . . . . . . . . . . . . . 179 49 360 342 Robot Hit Streak 59 | 2 15 10 17 10 . 6 17 21 4 8 . 8 33 8 17 15 59 13 18 41 . 13 13 11 9 17 3 25 18 9 38 35 27 49 44 Robot Miss Streak 7 | . 3 3 4 2 . 4 5 3 1 6 . 3 4 2 3 3 2 2 1 2 . 4 2 2 . 4 1 2 7 4 3 3 4 3 2 Penetration Max 2 | . . . . . . . . . . . . . . . . . . . . . . . . . . . . . . . 2 2 2 1 1 Secondary Targets 90 | . . . 5 . . 4 5 1 . 2 . 2 2 2 2 . 5 . . 3 . . 2 . . 3 1 1 7 3 4 7 6 16 7 Max Gunslinging Chain 2 | . . . 1 . . 1 1 1 . 1 . 1 1 2 1 . 2 . . 1 . . 1 . . 1 1 1 1 1 1 1 1 2 1 Shots Hit Robots 3224 | 2 51 26 217 16 . 24 217 107 8 34 . 14 171 10 47 13 117 28 18 47 5 32 62 33 3 35 7 73 237 44 197 423 143 383 380 Core Hits 1713 | 2 21 9 92 11 . 17 86 48 2 36 . 8 129 7 41 13 73 18 23 39 2 15 42 21 4 22 7 54 115 30 86 132 109 202 197 Critical Kills 49 | . . . . . . . . . . . . . . . . . . . . . . . . . . . . 1 1 . 7 9 29 2 . Critical Parts Destroyed 97 | . . . . . . . . . . . . . . . . . . . . . . . . . . . . . . . 14 24 57 2 . Critical Strikes 275 | . . . 15 3 . 2 27 6 . 1 . 1 6 . 1 . 6 1 1 2 . . . . . . . 6 17 5 34 42 89 8 2 Burn 118 | . . . 15 3 . 2 27 6 . 1 . 1 6 . 1 . 5 1 . 2 . . . . . . . 5 16 5 13 8 1 . . Meltdown 4 | . . . . . . . . . . . . . . . . . . . . . . . . . . . . 1 1 . 1 1 . . . Destroy 144 | . . . . . . . . . . . . . . . . . . . . . . . . . . . . . . . 20 32 88 4 . Sever 7 | . . . . . . . . . . . . . . . . . . . . . . . . . . . . . . . . 1 . 4 2 Impale 2 | . . . . . . . . . . . . . . . . . 1 . 1 . . . . . . . . . . . . . . . . Melee Attacks 23 | . . . . . . . . 4 . . . . 1 . . . 2 . 3 . 5 . . . . . . 1 . . . 1 3 3 . Impact 5 | . . . . . . . . 4 . . . . 1 . . . . . . . . . . . . . . . . . . . . . . Slashing . | . . . . . . . . . . . . . . . . . . . . . . . . . . . . . . . . . . . . Piercing 18 | . . . . . . . . . . . . . . . . . 2 . 3 . 5 . . . . . . 1 . . . 1 3 3 . Sneak Attacks . | . . . . . . . . . . . . . . . . . . . . . . . . . . . . . . . . . . . . Combat Hostiles . | . . . . . . . . . . . . . . . . . . . . . . . . . . . . . . . . . . . . Follow-up Attacks . | . . . . . . . . . . . . . . . . . . . . . . . . . . . . . . . . . . . . Damage Inflicted 103463 | 24 1118 565 4159 634 . 707 4424 2642 178 1626 . 303 4999 252 1568 327 4683 727 1406 1265 266 788 1665 815 104 1050 185 2015 7487 2055 5841 13776 4914 16176 14719 Guns 86440 | 24 . . 2673 222 . 385 4080 2642 178 789 . 303 4422 252 1170 327 2743 727 335 1265 . 788 1665 815 104 1050 185 1951 5859 1149 5584 11625 4413 13996 14719 Cannons 5263 | . 1118 565 1071 . . . . . . . . . . . . . . . . . . . . . . . . 64 458 . 257 1154 490 86 . Explosions 11311 | . . . 415 412 . 322 344 . . 837 . . 577 . 398 . 1871 . 999 . . . . . . . . . 1170 906 . 984 . 2076 . Melee 407 | . . . . . . . . . . . . . . . . . 69 . 72 . 266 . . . . . . . . . . . . . . Ramming 42 | . . . . . . . . . . . . . . . . . . . . . . . . . . . . . . . . 13 11 18 . Kinetic 1718 | 12 . . . . . . . . . . . . . . . . . . . . . . . . . . . . . . 229 417 1060 . . Thermal 64421 | 12 1118 565 3744 222 . 385 4080 2642 178 789 . 303 4422 252 1170 327 2743 727 335 1265 . 788 1665 815 104 1050 185 2015 6317 1149 5612 7476 2424 3966 5576 Explosive 11311 | . . . 415 412 . 322 344 . . 837 . . 577 . 398 . 1871 . 999 . . . . . . . . . 1170 906 . 984 . 2076 . Electromagnetic 357 | . . . . . . . . . . . . . . . . . . . . . . . . . . . . . . . . . . 265 92 Impact . | . . . . . . . . . . . . . . . . . . . . . . . . . . . . . . . . . . . . Slashing 25207 | . . . . . . . . . . . . . . . . . . . . . . . . . . . . . . . . 4886 1419 9851 9051 Piercing 407 | . . . . . . . . . . . . . . . . . 69 . 72 . 266 . . . . . . . . . . . . . . Highest Corruption 17 | . . . 5 5 5 5 1 4 4 . . . 1 1 2 2 . . . . . 10 2 2 2 2 . 10 17 . 12 12 . . . Average Corruption 5 | . . . 2 5 5 5 1 2 3 . . . 1 1 1 2 . . . . . 10 1 2 2 2 . 9 14 . 7 12 . . . Corruption Purged 4 | . . . . . . . . . 4 . . . . . . . . . . . . . . . . . . . . . . . . . . Corruption Blocked 32 | . . . . . . . . . . . . . . . . . . . . . . . . . . 20 . . . 12 . . . . . Effects 577 | . . . 35 39 19 22 31 28 30 . . . 4 4 5 1 . . . . . . 2 8 4 1 . 23 126 . 73 122 . . . Message Errors 126 | . . . 11 8 6 4 7 6 7 . . . 1 2 1 . . . . . . . . 1 1 . . 5 26 . 13 27 . . . Matter Fused 137 | . . . 4 12 4 7 8 9 7 . . . 1 . 2 . . . . . . . 2 5 1 . . 4 24 . 26 21 . . . Heat Flow Errors 58 | . . . 3 6 2 2 4 3 4 . . . 2 . 1 . . . . . . . . . . . . 1 13 . 8 9 . . . Energy Discharges 55 | . . . 5 6 2 . 3 . 2 . . . . . . . . . . . . . . . . 1 . 2 14 . 8 12 . . . Parts Rejected 6 | . . . . . . 1 . . . . . . . . . . . . . . . . . . . . . . 3 . . 2 . . . Parts Fused 7 | . . . . . . . . 1 . . . . . . . . . . . . . . . . . . . 1 . . . 5 . . . Data Loss (minor) 82 | . . . 4 5 3 2 4 5 6 . . . . . 1 1 . . . . . . . 1 1 . . 7 17 . 8 17 . . . Data Loss (major) 24 | . . . 2 1 1 1 1 1 1 . . . . 1 . . . . . . . . . . . . . . 8 . 2 5 . . . Misfires 31 | . . . 4 . . 3 1 1 2 . . . . 1 . . . . . . . . . 1 1 . . 1 8 . 2 6 . . . Alerts 14 | . . . 1 1 1 2 2 1 1 . . . . . . . . . . . . . . . . . . 2 1 . 1 1 . . . Misdirections 2 | . . . . . . . . . . . . . . . . . . . . . . . . . . . . . 1 . . 1 . . . Weapon Failures 35 | . . . 1 . . . 1 1 . . . . . . . . . . . . . . . . . . . . 11 . 5 16 . . . Overload Shots 10 | . . . . . . . . . . . . . . . . . . . . . . . . . . 1 . 2 . . 1 1 3 2 . Effects 1 | . . . . . . . . . . . . . . . . . . . . . . . . . . . . 1 . . . . . . . Short Circuit 1 | . . . . . . . . . . . . . . . . . . . . . . . . . . . . 1 . . . . . . . Overflow Damage 836 | . 20 12 37 15 . . 34 . . 1 . . . . . . 172 . 72 . 102 . . . . . . . 26 38 . 39 96 172 . Projectiles 189 | . 20 12 24 . . . . . . . . . . . . . . . . . . . . . . . . . . . . 37 96 . . Explosions 545 | . . . 13 15 . . 34 . . 1 . . . . . . 172 . 72 . . . . . . . . . 26 38 . 2 . 172 . Melee 102 | . . . . . . . . . . . . . . . . . . . . . 102 . . . . . . . . . . . . . . Knockbacks . | . . . . . . . . . . . . . . . . . . . . . . . . . . . . . . . . . . . . Impact . | . . . . . . . . . . . . . . . . . . . . . . . . . . . . . . . . . . . . Kinetic . | . . . . . . . . . . . . . . . . . . . . . . . . . . . . . . . . . . . . Secondary . | . . . . . . . . . . . . . . . . . . . . . . . . . . . . . . . . . . . . Self-Inflicted Damage 156 | . . . . . . 16 . . . . . . . . . . . . . . . . . . . . . . 82 24 . 25 . 9 . Shots 6 | . . . . . . 1 . . . . . . . . . . . . . . . . . . . . . . 1 1 . 3 . . . Rammed 4 | . . . . . . . . . . . . . . . . . . . . . . . . . . . . . . . . 2 1 1 . Targets Rammed 4 | . . . . . . . . . . . . . . . . . . . . . . . . . . . . . . . . 2 1 1 . Kicked . | . . . . . . . . . . . . . . . . . . . . . . . . . . . . . . . . . . . . Crushed . | . . . . . . . . . . . . . . . . . . . . . . . . . . . . . . . . . . . . Highest Temperature 444 | . 298 193 324 220 231 362 332 203 216 293 . 157 301 15 231 72 93 132 51 271 . 16 54 52 12 13 . . 173 120 444 181 178 178 158 Average Temperature 99 | . 99 92 102 86 124 129 85 62 89 123 . 76 77 8 66 29 28 41 34 78 . 11 13 13 8 8 . . 69 40 93 128 113 133 117 Received Heat Transfer 4400 | . 150 18 318 27 . 54 738 102 54 225 . . 498 . 192 9 225 . 57 456 . 21 . 18 . 35 . 72 227 . 97 539 124 144 . Effects 4 | . . . 1 . . . 2 . . . . . . . . . . . . . . . . . . . . . . . 1 . . . . Shutdowns 1 | . . . . . . . . . . . . . . . . . . . . . . . . . . . . . . . 1 . . . . Energy Bleed 1 | . . . 1 . . . . . . . . . . . . . . . . . . . . . . . . . . . . . . . . Interference 2 | . . . . . . . 2 . . . . . . . . . . . . . . . . . . . . . . . . . . . . Siege Activations 18 | . . . . . . . . . . . . . . . . . . . . . . . . . . . . . . . . 8 3 7 . Total Turns 865 | . . . . . . . . . . . . . . . . . . . . . . . . . . . . . . . . 88 53 724 . Longest Duration 556 | . . . . . . . . . . . . . . . . . . . . . . . . . . . . . . . . 17 23 556 . Robots Corrupted 3 | . . . . . . . . . . . . . . . . . . . . . . . . . . . . . . . . . . 2 1 Combat Hostiles 3 | . . . . . . . . . . . . . . . . . . . . . . . . . . . . . . . . . . 2 1 Parts Fried 13 | . . . . . . . . . . . . . . . . . . . . . . . . . . . . . . . . . . 9 4 Impact Corruptions . | . . . . . . . . . . . . . . . . . . . . . . . . . . . . . . . . . . . . Robots Melted 44 | . . . 1 . . . 1 3 . . . . 6 . 1 . 6 . . . . 3 . 1 . 1 . 2 4 2 4 7 . 2 . Combat Hostiles 36 | . . . 1 . . . . 3 . . . . 2 . 1 . 4 . . . . 3 . 1 . 1 . 1 4 2 4 7 . 2 . Parts Melted 464 | . 3 1 33 1 . 2 35 14 1 4 . . 24 1 9 . 22 7 2 9 . 8 14 8 . 1 1 21 67 16 64 84 6 6 . Heat Transferred 106188 | 25 1924 999 8970 679 . 999 10212 5160 335 1615 . 632 9594 486 2480 487 4922 1469 711 2715 . 1519 2938 1543 187 1683 361 4119 11919 2245 8078 9461 2245 3918 1558 Parts Sabotaged . | . . . . . . . . . . . . . . . . . . . . . . . . . . . . . . . . . . . . Parts Stolen . | . . . . . . . . . . . . . . . . . . . . . . . . . . . . . . . . . . . . Parts Stripped . | . . . . . . . . . . . . . . . . . . . . . . . . . . . . . . . . . . . . Power Chain Reactions . | . . . . . . . . . . . . . . . . . . . . . . . . . . . . . . . . . . . . Missiles Intercepted . | . . . . . . . . . . . . . . . . . . . . . . . . . . . . . . . . . . . . Alert | -11 -10 -10 -9 -9 -9 -8 -8 -7 -7 -7 -7 -6 -6 -6 -6 -6 -5 -5 -5 -5 -5 -4 -4 -4 -4 -4 -3 -3 -3 -2 -2 -2 -1 -1 -1 ------- Run | Jun Mat Min Mat Min Exi Min Mat Fac Low Low Dat Pro Fac Low Low Zio Pro Fac Upp Upp Zhi Pro Fac Upp Upp War Pro Res Qua Res Tes Sec Acc Com Ac0 Peak Influence 1733 | 5 315 143 930 362 . 288 499 249 . . . . 531 . . . . 273 . . . . 332 . . . . 238 358 533 457 1097 1306 1733 . Initial 835 | . 3 78 . 362 . . 35 214 . . . . 15 . . . . . . . . . 162 . . . . . 60 138 265 159 657 835 . Average 293 | 2 149 28 309 167 . 119 321 75 . . . . 230 . . . . 131 . . . . 222 . . . . 95 72 333 272 704 1017 1226 . Maximum Alert Level 5 | . 1 . 3 1 . 1 2 1 . . . . 2 . . . . 1 . . . . 1 . . . . 1 1 2 2 3 4 5 . Low Security (%) 45 | 100 57 100 44 59 . 83 13 97 . . . . 54 . . . . 79 . . . . 36 . . . . 83 91 30 17 8 . . . Level 1 24 | . 42 . 25 40 . 16 60 2 . . . . 19 . . . . 20 . . . . 63 . . . . 16 8 21 80 12 . . . Level 2 8 | . . . 15 . . . 25 . . . . . 25 . . . . . . . . . . . . . . . . 48 2 14 10 . . Level 3 8 | . . . 14 . . . . . . . . . . . . . . . . . . . . . . . . . . . . 64 48 13 . Level 4 1 | . . . . . . . . . . . . . . . . . . . . . . . . . . . . . . . . . 41 4 . Level 5 11 | . . . . . . . . . . . . . . . . . . . . . . . . . . . . . . . . . . 82 . High Security . | . . . . . . . . . . . . . . . . . . . . . . . . . . . . . . . . . . . . Max Security . | . . . . . . . . . . . . . . . . . . . . . . . . . . . . . . . . . . . . Sterilizations 1 | . . . 1 . . . . . . . . . . . . . . . . . . . . . . . . . . . . . . . . Squads Dispatched 115 | . 5 . 10 1 . . 9 7 . . . . 13 . . . 5 5 . . . . 1 . . . . 3 13 . 12 16 8 7 . Investigation 26 | . 5 . 4 . . . 3 2 . . . . 3 . . . 4 . . . . . . . . . . . 2 . 1 1 . 1 . Extermination 40 | . . . . . . . . 5 . . . . 5 . . . . 2 . . . . 1 . . . . 1 6 . 7 7 3 3 . Reinforcement 32 | . . . 3 . . . 5 . . . . . 5 . . . . 3 . . . . . . . . . 2 2 . 4 7 1 . . Assault 13 | . . . 3 1 . . . . . . . . . . . . 1 . . . . . . . . . . . . . . 1 4 3 . Garrison 4 | . . . . . . . 1 . . . . . . . . . . . . . . . . . . . . . 3 . . . . . . Intercept . | . . . . . . . . . . . . . . . . . . . . . . . . . . . . . . . . . . . . Searches Triggered . | . . . . . . . . . . . . . . . . . . . . . . . . . . . . . . . . . . . . Data Miner Redirects 8 | . . . . . . . . . . . . . 1 . . . . . . . . . . . . . . . . . . 2 3 2 . Construction Impeded 2 | . . . . . . . . . . . . . 1 . . . . . . . . . . . . . . . . . 1 . . . . Haulers Reinforced 9 | . . . . . . . . . . . . . 3 . . . . 2 . . . . . . . . . 2 . . 1 . 1 . . Active Scanning Responses . | . . . . . . . . . . . . . . . . . . . . . . . . . . . . . . . . . . . . Cargo Convoy Interrupts . | . . . . . . . . . . . . . . . . . . . . . . . . . . . . . . . . . . . . Stealth | -11 -10 -10 -9 -9 -9 -8 -8 -7 -7 -7 -7 -6 -6 -6 -6 -6 -5 -5 -5 -5 -5 -4 -4 -4 -4 -4 -3 -3 -3 -2 -2 -2 -1 -1 -1 --------- Run | Jun Mat Min Mat Min Exi Min Mat Fac Low Low Dat Pro Fac Low Low Zio Pro Fac Upp Upp Zhi Pro Fac Upp Upp War Pro Res Qua Res Tes Sec Acc Com Ac0 Distress Signals 48 | . . . 2 . . . 3 . . . . . 2 . . . 1 . . . . . 1 . . . . . 1 5 . 3 5 25 . Communications Jammed 106 | . . . . . . . . . . . . . . . . . . . . . . . . . . . . 1 17 . 1 . 85 2 . Distress Signals 100 | . . . . . . . . . . . . . . . . . . . . . . . . . . . . . 12 . 1 . 85 2 . Times Spotted 725 | . 19 14 68 6 . 9 52 19 4 9 . 5 35 4 10 3 28 3 6 12 . 5 13 3 1 52 3 13 45 20 34 63 32 80 55 Peak Tracking Total 10 | . 3 3 6 5 . 4 6 4 3 5 . 4 4 3 4 1 9 1 4 5 . 2 3 2 1 10 3 2 5 4 4 7 8 10 7 Tactical Retreats 26 | . . 2 2 . . . 3 . . . . . . . . 1 1 . . 2 . . . . 1 2 . . . . 1 7 3 1 . Traps | -11 -10 -10 -9 -9 -9 -8 -8 -7 -7 -7 -7 -6 -6 -6 -6 -6 -5 -5 -5 -5 -5 -4 -4 -4 -4 -4 -3 -3 -3 -2 -2 -2 -1 -1 -1 ------- Run | Jun Mat Min Mat Min Exi Min Mat Fac Low Low Dat Pro Fac Low Low Zio Pro Fac Upp Upp Zhi Pro Fac Upp Upp War Pro Res Qua Res Tes Sec Acc Com Ac0 Traps Triggered 16 | . 3 . 2 . . . 1 1 . . . . 2 . . . 1 1 . . . . . . . . . . 2 . . 1 1 1 . Indirectly . | . . . . . . . . . . . . . . . . . . . . . . . . . . . . . . . . . . . . Trap Hack Attempts . | . . . . . . . . . . . . . . . . . . . . . . . . . . . . . . . . . . . . Triggered . | . . . . . . . . . . . . . . . . . . . . . . . . . . . . . . . . . . . . Disarmed . | . . . . . . . . . . . . . . . . . . . . . . . . . . . . . . . . . . . . Reprogrammed . | . . . . . . . . . . . . . . . . . . . . . . . . . . . . . . . . . . . . Reused . | . . . . . . . . . . . . . . . . . . . . . . . . . . . . . . . . . . . . Traps Extracted . | . . . . . . . . . . . . . . . . . . . . . . . . . . . . . . . . . . . . Installed 6 | . . . . . . . . . . . . . . . . . . . . . . . . 6 . . . . . . . . . . . Triggered 22 | . . . . . . . . . . . . . . 1 . . . . . . . 1 . . 3 17 . . . . . . . . . Machines | -11 -10 -10 -9 -9 -9 -8 -8 -7 -7 -7 -7 -6 -6 -6 -6 -6 -5 -5 -5 -5 -5 -4 -4 -4 -4 -4 -3 -3 -3 -2 -2 -2 -1 -1 -1 ---------- Run | Jun Mat Min Mat Min Exi Min Mat Fac Low Low Dat Pro Fac Low Low Zio Pro Fac Upp Upp Zhi Pro Fac Upp Upp War Pro Res Qua Res Tes Sec Acc Com Ac0 Machines Disabled 54 | . 1 . 2 . . . 2 1 . . . . 4 . . 1 3 2 . . . . 1 . . 1 . . 5 . 9 13 1 3 5 Max in Single Turn 2 | . 1 . 1 . . . 1 1 . . . . 1 . . 1 2 . . . . . 1 . . 1 . . 1 . 1 2 1 1 1 Machines Repaired . | . . . . . . . . . . . . . . . . . . . . . . . . . . . . . . . . . . . . Machines Sabotaged . | . . . . . . . . . . . . . . . . . . . . . . . . . . . . . . . . . . . . Overloaded Fab Kills . | . . . . . . . . . . . . . . . . . . . . . . . . . . . . . . . . . . . . Hacking | -11 -10 -10 -9 -9 -9 -8 -8 -7 -7 -7 -7 -6 -6 -6 -6 -6 -5 -5 -5 -5 -5 -4 -4 -4 -4 -4 -3 -3 -3 -2 -2 -2 -1 -1 -1 --------- Run | Jun Mat Min Mat Min Exi Min Mat Fac Low Low Dat Pro Fac Low Low Zio Pro Fac Upp Upp Zhi Pro Fac Upp Upp War Pro Res Qua Res Tes Sec Acc Com Ac0 Machines Accessed 105 | . 9 . 11 1 1 . 12 11 . . 4 . 14 . . . 2 2 . . 4 . 3 . . 1 . 3 11 1 9 4 . 2 . Terminals 69 | . 8 . 8 . . . 8 6 . . . . 8 . . . 1 2 . . . . 2 . . . . 2 9 1 8 4 . 2 . Fabricators 9 | . . . . . . . . 2 . . . . 4 . . . 1 . . . . . . . . . . 1 . . 1 . . . . Repair Stations 10 | . . . 2 . . . 2 2 . . . . 2 . . . . . . . . . 1 . . . . . 1 . . . . . . Recycling Units 2 | . 1 . 1 . . . . . . . . . . . . . . . . . . . . . . . . . . . . . . . . Scanalyzers 4 | . . . . . . . 2 1 . . . . . . . . . . . . . . . . . . . . 1 . . . . . . Garrison Access . | . . . . . . . . . . . . . . . . . . . . . . . . . . . . . . . . . . . . Total Hacks 341 | . 33 . 34 1 1 . 44 33 . . 29 . 31 . . . 3 5 . . 17 . 10 . . 5 . 7 39 5 27 12 . 5 . Successful 200 | . 16 . 19 1 1 . 29 23 . . 29 . 15 . . . 3 2 . . 17 . 6 . . 5 . 1 15 3 10 4 . 1 . Failed 139 | . 16 . 15 . . . 15 9 . . . . 16 . . . . 3 . . . . 4 . . . . 6 24 2 17 8 . 4 . Catastrophic 24 | . 2 . . . . . 2 2 . . . . 2 . . . . . . . . . 1 . . . . 1 5 . 4 3 . 2 . Database Lockouts 2 | . 1 . . . . . . 1 . . . . . . . . . . . . . . . . . . . . . . . . . . . Manual 148 | . 26 . 23 . . . 22 16 . . . . 14 . . . . 3 . . . . 5 . . 1 . 1 19 1 10 7 . . . Terminals 215 | . 32 . 24 . . . 26 19 . . . . 17 . . . 1 5 . . . . 6 . . . . 5 34 5 24 12 . 5 . Fabricators 22 | . . . . . . . . 5 . . . . 10 . . . 2 . . . . . . . . . . 2 . . 3 . . . . Repair Stations 39 | . . . 9 . . . 11 7 . . . . 4 . . . . . . . . . 4 . . . . . 4 . . . . . . Recycling Units 2 | . 1 . 1 . . . . . . . . . . . . . . . . . . . . . . . . . . . . . . . . Scanalyzers 10 | . . . . . . . 7 2 . . . . . . . . . . . . . . . . . . . . 1 . . . . . . Garrison Access . | . . . . . . . . . . . . . . . . . . . . . . . . . . . . . . . . . . . . Terminal Hacks 105 | . 9 . 4 1 1 . 8 7 . . 29 . 1 . . . 1 . . . 17 . 2 . . 5 . 1 8 2 5 3 . 1 . Record 17 | . . . . . 1 . . . . . 11 . . . . . . . . . 5 . . . . . . . . . . . . . . Part Schematic 18 | . . . . . . . . 1 . . 10 . . . . . . . . . 4 . . . . . . . 1 1 1 . . . . Robot Schematic 5 | . . . . . . . . . . . 5 . . . . . . . . . . . . . . . . . . . . . . . . Robot Analysis 8 | . 3 . . . . . . . . . . . . . . . . . . . 4 . 1 . . . . . . . . . . . . Prototype ID Bank 19 | . 3 . 3 . . . . 1 . . 3 . . . . . . . . . 4 . . . . 5 . . . . . . . . . Open Door 5 | . . . . 1 . . . . . . . . . . . . 1 . . . . . . . . . . . . . . 2 . 1 . Branch Access Points 6 | . . . . . . . 1 1 . . . . 1 . . . . . . . . . 1 . . . . 1 . 1 . . . . . Terminal Index 3 | . . . . . . . 1 1 . . . . . . . . . . . . . . . . . . . . 1 . . . . . . Scanalyzer Index 1 | . . . . . . . 1 . . . . . . . . . . . . . . . . . . . . . . . . . . . . Alert Level 8 | . 1 . 1 . . . 2 . . . . . . . . . . . . . . . . . . . . . 2 . 1 1 . . . Unreport Threat 7 | . . . . . . . 1 2 . . . . . . . . . . . . . . . . . . . . 2 . 2 . . . . Recall Reinforcements 1 | . . . . . . . . . . . . . . . . . . . . . . . . . . . . . 1 . . . . . . Hauler Manifests 4 | . 1 . . . . . 2 1 . . . . . . . . . . . . . . . . . . . . . . . . . . . Registered Components 1 | . 1 . . . . . . . . . . . . . . . . . . . . . . . . . . . . . . . . . . Zone Layout 2 | . . . . . . . . . . . . . . . . . . . . . . . . . . . . . 1 . 1 . . . . Fabricator Hacks 12 | . . . . . . . . 3 . . . . 5 . . . 2 . . . . . . . . . . . . . 2 . . . . Network Status 3 | . . . . . . . . 1 . . . . 1 . . . . . . . . . . . . . . . . . 1 . . . . Load Schematic 5 | . . . . . . . . 1 . . . . 2 . . . 1 . . . . . . . . . . . . . 1 . . . . Build 4 | . . . . . . . . 1 . . . . 2 . . . 1 . . . . . . . . . . . . . . . . . . Repair Station Hacks 30 | . . . 8 . . . 8 6 . . . . 4 . . . . . . . . . 2 . . . . . 2 . . . . . . Scan Component 16 | . . . 4 . . . 5 3 . . . . 2 . . . . . . . . . 1 . . . . . 1 . . . . . . Repair 14 | . . . 4 . . . 3 3 . . . . 2 . . . . . . . . . 1 . . . . . 1 . . . . . . Recycling Unit Hacks . | . . . . . . . . . . . . . . . . . . . . . . . . . . . . . . . . . . . . Scanalyzer 8 | . . . . . . . 5 2 . . . . . . . . . . . . . . . . . . . . 1 . . . . . . Insert Component 5 | . . . . . . . 3 1 . . . . . . . . . . . . . . . . . . . . 1 . . . . . . Analyze 3 | . . . . . . . 2 1 . . . . . . . . . . . . . . . . . . . . . . . . . . . Garrison Access Hacks . | . . . . . . . . . . . . . . . . . . . . . . . . . . . . . . . . . . . . Unauthorized Hacks 45 | . 7 . 7 . . . 8 5 . . . . 5 . . . . 2 . . . . 2 . . . . . 4 1 3 1 . . . Terminals 41 | . 6 . 6 . . . 8 4 . . . . 4 . . . . 2 . . . . 2 . . . . . 4 1 3 1 . . . Track 1 | . . . . . . . 1 . . . . . . . . . . . . . . . . . . . . . . . . . . . . Assimilate 3 | . . . . . . . . 2 . . . . . . . . . . . . . . . . . . . . 1 . . . . . . Botnet 37 | . 6 . 6 . . . 7 2 . . . . 4 . . . . 2 . . . . 2 . . . . . 3 1 3 1 . . . Fabricators 2 | . . . . . . . . 1 . . . . 1 . . . . . . . . . . . . . . . . . . . . . . Prioritize 1 | . . . . . . . . 1 . . . . . . . . . . . . . . . . . . . . . . . . . . . Haulers 1 | . . . . . . . . . . . . . 1 . . . . . . . . . . . . . . . . . . . . . . Repair Stations . | . . . . . . . . . . . . . . . . . . . . . . . . . . . . . . . . . . . . Recycling Units 2 | . 1 . 1 . . . . . . . . . . . . . . . . . . . . . . . . . . . . . . . . Tunnel 2 | . 1 . 1 . . . . . . . . . . . . . . . . . . . . . . . . . . . . . . . . Scanalyzers . | . . . . . . . . . . . . . . . . . . . . . . . . . . . . . . . . . . . . Garrison Access . | . . . . . . . . . . . . . . . . . . . . . . . . . . . . . . . . . . . . Data Cores Recovered 1 | . . . . . . . . . . . . . . . . . . . . . . . . . . . . . 1 . . . . . . Used 1 | . . . . . . . . . . . . . . . . . . . . . . . . . . . . . 1 . . . . . . Hacking Detections 83 | . 8 . 10 . . . 11 11 . . . . 13 . . . 1 2 . . . . 3 . . . . 3 8 1 8 3 . 1 . Full Trace Events 17 | . 3 . 1 . . . 2 2 . . . . 3 . . . 1 . . . . . . . . . . . 2 . 1 1 . 1 . Feedback Events 1 | . . . . . . . 1 . . . . . . . . . . . . . . . . . . . . . . . . . . . . Corruption 1 | . . . . . . . 1 . . . . . . . . . . . . . . . . . . . . . . . . . . . . Feedback Blocked . | . . . . . . . . . . . . . . . . . . . . . . . . . . . . . . . . . . . . Robot Schematics Acquired 9 | . . . . . . . . . . . 5 . . . . . . . . . . . . . . . . . 2 . . 2 . . . Robots Built . | . . . . . . . . . . . . . . . . . . . . . . . . . . . . . . . . . . . . Authchips . | . . . . . . . . . . . . . . . . . . . . . . . . . . . . . . . . . . . . Time . | . . . . . . . . . . . . . . . . . . . . . . . . . . . . . . . . . . . . Total Robot Build Rating . | . . . . . . . . . . . . . . . . . . . . . . . . . . . . . . . . . . . . Part Schematics Acquired 27 | . . . . . . . 1 2 . . 10 . . . . . . . . . 4 . . . . . . . 3 1 4 2 . . . Parts Built 5 | . . . . . . . . 2 . . . . 2 . . . 1 . . . . . . . . . . . . . . . . . . Authchips . | . . . . . . . . . . . . . . . . . . . . . . . . . . . . . . . . . . . . Time 278 | . . . . . . . . 42 . . . . 134 . . . 102 . . . . . . . . . . . . . . . . . . Total Part Build Rating 28 | . . . . . . . . 8 . . . . 12 . . . 8 . . . . . . . . . . . . . . . . . . Parts Repaired 14 | . . . 4 . . . 3 3 . . . . 2 . . . . . . . . . 1 . . . . . 1 . . . . . . Time 695 | . . . 166 . . . 238 190 . . . . 54 . . . . . . . . . 25 . . . . . 22 . . . . . . Parts Recycled . | . . . . . . . . . . . . . . . . . . . . . . . . . . . . . . . . . . . . Recycled Matter . | . . . . . . . . . . . . . . . . . . . . . . . . . . . . . . . . . . . . Retrieved Matter . | . . . . . . . . . . . . . . . . . . . . . . . . . . . . . . . . . . . . Retrieved Components . | . . . . . . . . . . . . . . . . . . . . . . . . . . . . . . . . . . . . Parts Scanalyzed 2 | . . . . . . . 1 1 . . . . . . . . . . . . . . . . . . . . . . . . . . . Part Schematics Acquired 2 | . . . . . . . 1 1 . . . . . . . . . . . . . . . . . . . . . . . . . . . Parts Damaged 1 | . . . . . . . 1 . . . . . . . . . . . . . . . . . . . . . . . . . . . . Bothacking | -11 -10 -10 -9 -9 -9 -8 -8 -7 -7 -7 -7 -6 -6 -6 -6 -6 -5 -5 -5 -5 -5 -4 -4 -4 -4 -4 -3 -3 -3 -2 -2 -2 -1 -1 -1 ------------ Run | Jun Mat Min Mat Min Exi Min Mat Fac Low Low Dat Pro Fac Low Low Zio Pro Fac Upp Upp Zhi Pro Fac Upp Upp War Pro Res Qua Res Tes Sec Acc Com Ac0 Used RIF Installer . | . . . . . . . . . . . . . . . . . . . . . . . . . . . . . . . . . . . . Robots Hacked . | . . . . . . . . . . . . . . . . . . . . . . . . . . . . . . . . . . . . Non-combat . | . . . . . . . . . . . . . . . . . . . . . . . . . . . . . . . . . . . . Combat . | . . . . . . . . . . . . . . . . . . . . . . . . . . . . . . . . . . . . Robot Hacks Applied . | . . . . . . . . . . . . . . . . . . . . . . . . . . . . . . . . . . . . Relay Couplers Released 7 | . . . . . . . . 3 . . . . . . . . . . . . . . . . . . . . . . 4 . . . . Programmers 7 | . . . . . . . . 3 . . . . . . . . . . . . . . . . . . . . . . 4 . . . . Fabnet Peak Effective % . | . . . . . . . . . . . . . . . . . . . . . . . . . . . . . . . . . . . . Robots Rewired 18 | . . . . . . . . . . . . . . . . . 13 . . . . . . . . 5 . . . . . . . . . Allies Hacked . | . . . . . . . . . . . . . . . . . . . . . . . . . . . . . . . . . . . . Hacks Repelled . | . . . . . . . . . . . . . . . . . . . . . . . . . . . . . . . . . . . . Allies | -11 -10 -10 -9 -9 -9 -8 -8 -7 -7 -7 -7 -6 -6 -6 -6 -6 -5 -5 -5 -5 -5 -4 -4 -4 -4 -4 -3 -3 -3 -2 -2 -2 -1 -1 -1 -------- Run | Jun Mat Min Mat Min Exi Min Mat Fac Low Low Dat Pro Fac Low Low Zio Pro Fac Upp Upp Zhi Pro Fac Upp Upp War Pro Res Qua Res Tes Sec Acc Com Ac0 Total Allies 24 | . . 3 . 1 . . . 1 . . . 1 . . . . 13 . . . . . . . . 5 . . . . . . . . . Largest Group 6 | . . 3 1 1 . . . 1 . . . 1 1 . . . 6 4 . . . . . . . 5 . . . . . . . . . Highest-Rated Group 289 | . . 40 16 31 . . . 10 . . . 96 96 . . . 202 142 . . . . . . . 289 . . . . . . . . . Highest-Rated Ally 96 | . . 16 16 31 . . . 10 . . . 96 96 . . . 41 41 . . . . . . . 68 . . . . . . . . . Total Orders 2 | . . . . . . . . . . . . . . . . . . . . . . . . . . 2 . . . . . . . . . AID 2 | . . . . . . . . . . . . . . . . . . . . . . . . . . 2 . . . . . . . . . Ally Attacks 148 | . . 26 6 5 . . . . . . . 7 5 . . . 33 12 . . . . . . . 54 . . . . . . . . . Total Damage 6348 | . . 220 52 44 . . . . . . . 411 211 . . . 1099 510 . . . . . . . 3801 . . . . . . . . . Kills 39 | . . 8 2 . . . . . . . . 3 3 . . . 2 9 . . . . . . . 12 . . . . . . . . . Allies Corrupted . | . . . . . . . . . . . . . . . . . . . . . . . . . . . . . . . . . . . . Allies Melted 1 | . . . . . . . . . . . . . . . . . . . . . . . . . . 1 . . . . . . . . . Intel | -11 -10 -10 -9 -9 -9 -8 -8 -7 -7 -7 -7 -6 -6 -6 -6 -6 -5 -5 -5 -5 -5 -4 -4 -4 -4 -4 -3 -3 -3 -2 -2 -2 -1 -1 -1 ------- Run | Jun Mat Min Mat Min Exi Min Mat Fac Low Low Dat Pro Fac Low Low Zio Pro Fac Upp Upp Zhi Pro Fac Upp Upp War Pro Res Qua Res Tes Sec Acc Com Ac0 Robot Analysis Total 8 | . 3 . . . . . . . . . . . . . . . . . . . 4 . 1 . . . . . . . . . . . . Derelict Logs Recovered 16 | . . 2 . 1 . . . . 2 1 . 1 . . 1 1 1 . 3 1 . 1 . 1 . . . . . . . . . . . Drone Launches . | . . . . . . . . . . . . . . . . . . . . . . . . . . . . . . . . . . . . Drone Recoveries . | . . . . . . . . . . . . . . . . . . . . . . . . . . . . . . . . . . . . Exploration | -11 -10 -10 -9 -9 -9 -8 -8 -7 -7 -7 -7 -6 -6 -6 -6 -6 -5 -5 -5 -5 -5 -4 -4 -4 -4 -4 -3 -3 -3 -2 -2 -2 -1 -1 -1 ------------- Run | Jun Mat Min Mat Min Exi Min Mat Fac Low Low Dat Pro Fac Low Low Zio Pro Fac Upp Upp Zhi Pro Fac Upp Upp War Pro Res Qua Res Tes Sec Acc Com Ac0 Turns Passed 53884 | 68 1252 1731 3002 1541 734 656 3406 3292 1442 2075 255 1104 3343 790 864 1901 1692 796 652 646 272 654 910 668 421 1838 565 940 3340 728 2927 2515 1056 4931 877 Spaces Moved 21688 | 64 654 706 946 650 339 248 1165 1248 602 773 95 473 1606 316 470 957 743 319 334 323 147 327 342 344 181 832 303 303 1149 256 1073 833 280 1986 301 Core 23 | 15 . . . . . . . . . . . . . . . . . . . . . . . . . . . . . . 1 . . . 7 Treads 155 | . . . . . . . . . . . . . . . . . . . . . . . . . . . . . . . 1 75 60 19 . Legs . | . . . . . . . . . . . . . . . . . . . . . . . . . . . . . . . . . . . . Wheels 21209 | 49 654 706 946 650 339 248 1165 1248 602 773 95 473 1606 316 470 957 743 319 334 323 147 327 342 344 181 832 303 303 1149 256 1071 600 220 1824 294 Hover . | . . . . . . . . . . . . . . . . . . . . . . . . . . . . . . . . . . . . Flight . | . . . . . . . . . . . . . . . . . . . . . . . . . . . . . . . . . . . . Fastest Speed 50 | 50 95 175 215 230 215 230 210 210 210 225 225 225 155 155 155 155 155 165 150 165 150 165 180 180 180 180 180 180 180 175 190 195 230 190 50 Average Speed 196 | 81 160 202 225 230 215 230 217 224 224 228 229 225 159 155 155 155 158 165 164 165 164 165 184 180 189 181 180 188 205 204 212 222 259 203 192 Slowest Speed 3300 | 95 215 215 230 230 230 230 230 225 225 240 240 240 165 155 155 155 175 165 165 165 165 165 195 180 195 195 180 195 315 205 3300 320 395 320 197 Overloaded Moves . | . . . . . . . . . . . . . . . . . . . . . . . . . . . . . . . . . . . . Propulsion Burnouts . | . . . . . . . . . . . . . . . . . . . . . . . . . . . . . . . . . . . . Robots Hopped . | . . . . . . . . . . . . . . . . . . . . . . . . . . . . . . . . . . . . Cave-ins Triggered 2 | . . . . . . . . . . . . . . . . . . . . . . . . . . . . 1 . . . . . 1 . Teleports 5 | . . . . . . . . . . . . . . . . . . . . . . . . . . . . . 1 . 1 1 . 1 1 Microwarps 26 | . . . . . . . . . . . . . . . . . . . . . . . . . . . . . . . . 14 . 12 . Exploration Rate (%) 55 | 5 90 99 81 97 77 74 55 31 79 85 74 68 38 48 69 81 59 10 57 58 60 57 10 49 40 78 58 9 85 11 87 48 7 44 21 Regions Visited 35 Branch Regions 25 Pre-discovered Areas 11 | . 1 1 1 1 . . . . . . 1 . . . . 2 . . 1 . 3 . . . . . . . . . . . . . . Known Exits Taken 28 | . . . 1 . . 1 . 1 1 1 1 1 1 1 1 1 1 1 1 1 1 1 1 1 1 1 1 1 1 1 1 1 1 . . Unknown Exits Taken 7 | 1 1 1 . 1 1 . 1 . . . . . . . . . . . . . . . . . . . . . . . . . . 1 . Scrap Searched 28 | . . 2 . 3 . . . . 3 3 . 3 . 1 1 2 . . 2 2 . 2 . . . . 4 . . . . . . . . Spaces Dug 202 | . . . . . . . . 3 . 17 . . 22 1 . . . 5 36 . . . 6 . 1 6 . 10 8 34 10 12 5 8 18 Terrain Destroyed 1218 | . . 1 19 24 . 71 28 3 . 42 . . 55 1 30 . 115 8 138 . . . 13 . 2 13 . 19 91 68 19 40 28 90 300 Melee 4 | . . . . . . . . 2 . . . . 1 . . . . . . . . . . . . . . . . . . . 1 . . Projectile 520 | . . 1 . . . . 3 1 . 13 . . 23 1 . . 1 8 . . . . 13 . 2 13 . 19 28 9 18 17 26 24 300 AOE 688 | . . . 19 24 . 71 25 . . 29 . . 31 . 30 . 114 . 138 . . . . . . . . . 63 59 . 21 . 64 . Terrain Rammed . | . . . . . . . . . . . . . . . . . . . . . . . . . . . . . . . . . . . . Walls Destroyed . | . . . . . . . . . . . . . . . . . . . . . . . . . . . . . . . . . . . . Machines Disabled . | . . . . . . . . . . . . . . . . . . . . . . . . . . . . . . . . . . . . Actions | -11 -10 -10 -9 -9 -9 -8 -8 -7 -7 -7 -7 -6 -6 -6 -6 -6 -5 -5 -5 -5 -5 -4 -4 -4 -4 -4 -3 -3 -3 -2 -2 -2 -1 -1 -1 --------- Run | Jun Mat Min Mat Min Exi Min Mat Fac Low Low Dat Pro Fac Low Low Zio Pro Fac Upp Upp Zhi Pro Fac Upp Upp War Pro Res Qua Res Tes Sec Acc Com Ac0 Total 30255 | 74 783 965 1561 676 347 291 1758 1606 682 1008 130 496 2135 604 548 1357 1145 548 397 392 168 405 537 367 255 1106 317 574 1857 412 1513 1398 505 2866 472 Wait 5455 | . 52 221 420 5 . 19 382 207 67 177 28 13 317 281 46 367 212 157 23 47 2 62 122 9 71 150 1 189 441 73 165 359 60 676 34 Move 21376 | 63 653 705 945 649 338 247 1164 1247 601 772 94 472 1605 315 469 956 742 318 333 322 146 326 341 343 180 831 302 301 1148 255 1072 688 279 1854 300 Hop . | . . . . . . . . . . . . . . . . . . . . . . . . . . . . . . . . . . . . Pick Up 305 | 4 26 6 19 2 . . 27 24 2 1 . 1 19 . 2 4 19 7 1 1 2 1 4 . . 11 1 4 21 9 16 18 11 40 2 Fast Attach 246 | 6 2 . 12 . . 1 6 6 2 . . . 13 . . 8 4 13 2 . 6 . 8 . . 15 4 4 30 16 43 14 7 19 5 Attach 195 | . 2 3 7 . 4 . 12 8 1 2 1 . 12 1 1 . 10 4 2 4 . . 3 . . 2 1 5 13 6 7 29 15 23 17 Detach 44 | . . . . . 3 . . . . . . . 1 . . . . . 1 . . . . . . 2 . 2 1 . 1 13 5 11 4 Swap 454 | . 3 3 9 5 . 4 14 33 3 14 6 3 50 2 8 3 14 13 12 4 2 4 13 . 2 11 1 14 37 7 51 46 13 43 7 Drop 410 | . 6 5 26 4 2 . 24 23 3 . 1 1 15 . . 12 15 18 3 . 5 . 9 . . 30 5 5 35 23 62 19 10 49 . Fire 1607 | 1 39 22 123 11 . 20 129 54 3 42 . 6 102 5 22 7 51 18 16 14 . 12 35 9 2 31 2 48 122 23 96 209 101 129 103 Melee 23 | . . . . . . . . 4 . . . . 1 . . . 2 . 3 . 5 . . . . . . 1 . . . 1 3 3 . Ram 1 | . . . . . . . . . . . . . . . . . . . . . . . . . . . . . . . . . . 1 . Kick . | . . . . . . . . . . . . . . . . . . . . . . . . . . . . . . . . . . . . Crush 3 | . . . . . . . . . . . . . . . . . . . . . . . . . . . . . . . . 2 1 . . Escape Stasis 18 | . . . . . . . . . . . . . . . . . . . . . . . . . . . . 1 9 . . . . 8 . Rewire 112 | . . . . . . . . . . . . . . . . . 76 . 1 . . . 2 . . 23 . . . . . . . 10 . Trap 6 | . . . . . . . . . . . . . . . . . . . . . . . . 6 . . . . . . . . . . . Miscellaneous . | . . . . . . . . . . . . . . . . . . . . . . . . . . . . . . . . . . . . Route ------- -11/Junkyard -10/Materials (discovered 4 exits: *Mat x3 / [*Min]) -10/Mines (discovered 3 exits: *Mat x2 / [*Sub]) -9/Materials (discovered 4 exits: *Mat x2 / *Min x2) -9/Mines (discovered 3 exits: *Mat x2 / *Exi) -9/Exiles -8/Mines -8/Materials -7/Factory (discovered 4 exits: *Sto x2 / *Low x2) -7/Lower Caves (discovered 2 exits: *Low / *Dat) -7/Lower Caves (discovered 2 exits: *Fac / *Dat) -7/Data Miner -6/Proximity Caves -6/Factory (discovered 6 exits: *Fac x2 / *Low x2 / Ext x2) -6/Lower Caves -6/Lower Caves (discovered 2 exits: *Fac / *Zio) -6/Zion -5/Proximity Caves -5/Factory (discovered 3 exits: Fac / *Upp x2) -5/Upper Caves -5/Upper Caves -5/Zhirov -4/Proximity Caves -4/Factory (discovered 2 exits: *Upp x2) -4/Upper Caves -4/Upper Caves -4/Warlord -3/Proximity Caves -3/Research (discovered 3 exits: Arm / *Qua x2) -3/Quarantine -2/Research (discovered 2 exits: *Tes x2) -2/Testing (discovered 2 exits: *Acc / *Sec) -2/Section 7 -1/Access -1/Command (discovered 3 exits: [*Sur x2] / [*Ac0]) -1/Access_0 Near Former Tau Ceti IV History --------- Turn | Location | Event 14 | -11/Junkyard | Discovered new exit (range 16) 69 | -11/Junkyard | Entered Materials 305 | -10/Materials | Build established: Mutant 378 | -10/Materials | Discovered new exit (range 15) 745 | -10/Materials | Discovered new exit (range 8) 836 | -10/Materials | Discovered new exit (range 13) 864 | -10/Materials | Central database locked down 1098 | -10/Materials | Discovered new exit (range 14) 1321 | -10/Materials | Entered Mines 1337 | -10/Mines | Learned 4 Materials zone layouts 1429 | -10/Mines | Discovered new exit (range 11) 1454 | -10/Mines | Assembled infested the area 1688 | -10/Mines | Core integrity fell below 50% 1725 | -10/Mines | Lost 3 parts (2n1w) 1950 | -10/Mines | Assisted by bots powering up and referring to "LRC-V3" 2201 | -10/Mines | Learned location of Zion (-6) 2242 | -10/Mines | Discovered new exit (range 13) 2247 | -10/Mines | Discovered new exit (range 8) 2254 | -10/Mines | Received a Rocket Launcher from a helpful Derelict 3052 | -10/Mines | Entered Materials 3052 | -9/Materials | Accompanied by 1 ally 3052 | -9/Materials | Evolved 2 slots: Utility x1, Weapon x1 3053 | -9/Materials | Identified exit to Materials 3053 | -9/Materials | Identified exit to Mines 3430 | -9/Materials | Destroyed 7 combat bots 3807 | -9/Materials | Discovered exit to Materials (range 10) 4468 | -9/Materials | Build established: Tank 4667 | -9/Materials | Repaired Imp. Medium Laser 4701 | -9/Materials | Repaired Beam Rifle 5448 | -9/Materials | Repaired Disposable Heat Sink 5452 | -9/Materials | First assault squad dispatched 5500 | -9/Materials | Repaired Cld. Ion Engine? 5907 | -9/Materials | Sterilization system engaged 5907 | -9/Materials | Non-combat units ordered to evacuate 6007 | -9/Materials | Combat units ordered to evacuate 6054 | -9/Materials | Entered Mines 6076 | -9/Mines | Met a Derelict bent on vengeance 6305 | -9/Mines | A weapon hastily lodged in a ceiling crevice suddenly fell to the ground 6364 | -9/Mines | Found a damaged Exp. Sensor Array with a note attached 6370 | -9/Mines | Found Prototype Device 6592 | -9/Mines | Discovered exit to Materials (range 11) 6710 | -9/Mines | Discovered exit to Materials (range 5) 6973 | -9/Mines | Met a Derelict who couldn't figure out how to use a Trap Extractor 7348 | -9/Mines | Met a Derelict testing a Signal Generator 7586 | -9/Mines | Deemed a non-threat by the Exiles lab entrance 7586 | -9/Mines | Discovered new exit (range 5) 7595 | -9/Mines | Entered Exiles 7595 | -9/Exiles | Found Exiles lab abandoned 7895 | -9/Exiles | Build established: Mutant 8301 | -9/Exiles | Discovered new exit (range 14) 8329 | -9/Exiles | Entered Mines 8571 | -8/Mines | Core integrity fell below 50% 8615 | -8/Mines | Build established: Tank 8948 | -8/Mines | Discovered exit to Materials (range 16) 8985 | -8/Mines | Entered Materials 8985 | -8/Materials | Evolved 2 slots: Utility x2 9283 | -8/Materials | Repaired Imp. Medium Laser 9569 | -8/Materials | Repaired Imp. Medium Laser? 9903 | -8/Materials | Identified Exp. Sensor Array 10613 | -8/Materials | Repaired Broken Exp. Sensor Array? 10905 | -8/Materials | Discovered new exit (range 3) 11254 | -8/Materials | Build established: Scavenger-Tank 11891 | -8/Materials | Core integrity fell below 50% 11912 | -8/Materials | Lost 3 parts (1p1n1u) 12123 | -8/Materials | Garrison activated, responded to threat 12391 | -8/Materials | Entered Factory 12391 | -7/Factory | Evolved 2 slots: Utility x2 12679 | -7/Factory | Build established: Scavenger-Skirmisher 13017 | -7/Factory | Discovered new exit (range 9) 13039 | -7/Factory | Identified exit to Storage 13193 | -7/Factory | Repaired Arm. Wheel 14356 | -7/Factory | Discovered new exit (range 15) 14472 | -7/Factory | Identified exit to Lower Caves 14480 | -7/Factory | Repaired Broken Hpw. Field Laser? 14595 | -7/Factory | Repaired Hpw. Field Laser? 14797 | -7/Factory | Central database locked down 15366 | -7/Factory | Fabricated Gatling Laser (x2) 15431 | -7/Factory | Lost 3 parts (2u1w) 15683 | -7/Factory | Entered Lower Caves 15896 | -7/Lower Caves | Identified exit to Lower Caves 16499 | -7/Lower Caves | Encountered a Warlord checkpoint 16893 | -7/Lower Caves | A Derelict revealed a hidden shortcut to meet someone special 16915 | -7/Lower Caves | Identified exit to Data Miner 17003 | -7/Lower Caves | Attracted the attention of an 0b10 checkpoint 17033 | -7/Lower Caves | Learned location of 1 exit from Factory 17125 | -7/Lower Caves | Entered another Lower Caves area 17148 | -7/Lower Caves | Learned location of 1 exit from Factory 17315 | -7/Lower Caves | Discovered new exit (range 5) 17324 | -7/Lower Caves | Identified exit to Factory 18483 | -7/Lower Caves | Attracted the attention of an 0b10 checkpoint 18522 | -7/Lower Caves | Destroyed 7 combat bots 18905 | -7/Lower Caves | Discovered exit to Data Miner (range 10) 19197 | -7/Lower Caves | Build established: Scavenger-Mutant 19200 | -7/Lower Caves | Entered Data Miner 19200 | -7/Data Miner | Discovered new exit (range 6) 19243 | -7/Data Miner | Met Data Miner 19290 | -7/Data Miner | Learned location of Section 7 (-2) 19290 | -7/Data Miner | Acquired the access code to Warlord's prototype stash 19322 | -7/Data Miner | Received God Mode back door access code from Data Miner 19444 | -7/Data Miner | Identified exit to Proximity Caves 19455 | -7/Data Miner | Entered Proximity Caves 19478 | -6/Proximity Caves | Escorted by Enhanced Grunt 19750 | -6/Proximity Caves | Learned location of 1 exit from Lower Caves 19796 | -6/Proximity Caves | Build established: Scavenger-Skirmisher 20098 | -6/Proximity Caves | Discovered exit to Factory (range 11) 20559 | -6/Proximity Caves | Entered Factory 20559 | -6/Factory | Accompanied by 1 ally 20559 | -6/Factory | Evolved 2 slots: Power x1, Utility x1 20560 | -6/Factory | Identified exit to Extension 20560 | -6/Factory | Identified exit to Factory 20667 | -6/Factory | Repaired Arm. Wheel? 21316 | -6/Factory | Incoming investigation squad redirected 21365 | -6/Factory | Fabricated Cld. Plasma Cannon (x1) 22360 | -6/Factory | Spotted B-75 Beast 22362 | -6/Factory | Identified exit to Lower Caves 22402 | -6/Factory | Destroyed B-75 Beast 22421 | -6/Factory | Lost 3 parts (1n2u) 22441 | -6/Factory | Discovered exit to Factory (range 15) 22508 | -6/Factory | Fabricated Micro-nuke Launcher (x1) 22591 | -6/Factory | Repaired Imp. Medium Armor Plating 23268 | -6/Factory | Build established: Skirmisher 23902 | -6/Factory | Entered Lower Caves 23903 | -6/Lower Caves | Identified exit to Lower Caves 24692 | -6/Lower Caves | Entered another Lower Caves area 24700 | -6/Lower Caves | Attracted the attention of an 0b10 checkpoint 24739 | -6/Lower Caves | Discovered exit to Factory (range 6) 25534 | -6/Lower Caves | Discovered new exit (range 5) 25539 | -6/Lower Caves | Identified exit to Zion 25556 | -6/Lower Caves | Spotted B-75 Beast 25556 | -6/Lower Caves | Entered Zion 25573 | -6/Zion | Given A8's code to call for help 25663 | -6/Zion | System corruption cleaned by Quarantine Array 25820 | -6/Zion | Discovered new exit (range 15) 26232 | -6/Zion | Found CR-A16's Pointy Stick 27012 | -6/Zion | Attacked by Zionites 27412 | -6/Zion | Destroyed Imprinter 27422 | -6/Zion | Extracted access codes from Imprinter's data core 27456 | -6/Zion | Identified exit to Proximity Caves 27457 | -6/Zion | Entered Proximity Caves 27579 | -5/Proximity Caves | Learned 8 Factory zone layouts 27739 | -5/Proximity Caves | Attracted the attention of an 0b10 outpost 27777 | -5/Proximity Caves | Destroyed 9 combat bots 28022 | -5/Proximity Caves | Snuck into a huge 0b10 base via the rear entrance 28137 | -5/Proximity Caves | Lost 6 parts (1p2n1u2w) 28195 | -5/Proximity Caves | Derelicts attacked a huge 0b10 base 28272 | -5/Proximity Caves | Discovered exit to Factory (range 6) 28791 | -5/Proximity Caves | Fabricated Exp. Sensor Array? 28902 | -5/Proximity Caves | Build established: Commander-Skirmisher 28929 | -5/Proximity Caves | Spotted B-75 Beast 28944 | -5/Proximity Caves | Allies destroyed B-75 Beast 29149 | -5/Proximity Caves | Entered Factory 29149 | -5/Factory | Accompanied by 4 allies 29149 | -5/Factory | Evolved 2 slots: Utility x1, Weapon x1 29150 | -5/Factory | Identified exit to Upper Caves 29151 | -5/Factory | Identified exit to Factory 29529 | -5/Factory | Build established: Hacker-Skirmisher 29897 | -5/Factory | Discovered exit to Upper Caves (range 14) 29945 | -5/Factory | Entered Upper Caves 29947 | -5/Upper Caves | Attracted the attention of an 0b10 checkpoint 29965 | -5/Upper Caves | Learned Factory machine intel 30069 | -5/Upper Caves | Identified exit to Upper Caves 30484 | -5/Upper Caves | Learned location of Warlord (-4) 30508 | -5/Upper Caves | Spotted B-75 Beast 30519 | -5/Upper Caves | Revealed the true nature of CR-A16's Pointy Stick 30522 | -5/Upper Caves | Destroyed B-75 Beast 30597 | -5/Upper Caves | Entered another Upper Caves area 31116 | -5/Upper Caves | Learned Factory stockpile data 31233 | -5/Upper Caves | Discovered new exit (range 5) 31241 | -5/Upper Caves | Identified exit to Zhirov 31243 | -5/Upper Caves | Entered Zhirov 31243 | -5/Zhirov | Discovered new exit (range 3) 31273 | -5/Zhirov | Met Zhirov 31306 | -5/Zhirov | Learned location of Testing (-2) 31306 | -5/Zhirov | Learned location of Command (-1) 31321 | -5/Zhirov | Zhirov requested help retrieving the SGEMP Prototype 31346 | -5/Zhirov | Found Alien Artifact 31346 | -5/Zhirov | Identified Integrated Dissipator 31346 | -5/Zhirov | Installed Integrated Dissipator, increased core heat dissipation (+20) 31369 | -5/Zhirov | Found Alien Artifact 31514 | -5/Zhirov | Identified exit to Proximity Caves 31515 | -5/Zhirov | Entered Proximity Caves 31518 | -4/Proximity Caves | Spotter reported a threat 31776 | -4/Proximity Caves | Learned Research non-interactive machine intel 32161 | -4/Proximity Caves | Discovered exit to Factory (range 3) 32167 | -4/Proximity Caves | System corruption reached 10% 32169 | -4/Proximity Caves | Entered Factory 32169 | -4/Factory | Evolved 2 slots: Power x1, Utility x1 32171 | -4/Factory | Loaded intel: 260 machine locations 32482 | -4/Factory | Build established: Scavenger-Tank 32727 | -4/Factory | Repaired Lyr. Medium Armor Plating 32806 | -4/Factory | Identified exit to Upper Caves 33079 | -4/Factory | Entered Upper Caves 33481 | -4/Upper Caves | Spotted B-86 Titan 33727 | -4/Upper Caves | Discovered new exit (range 9) 33734 | -4/Upper Caves | Encountered a Warlord checkpoint 33745 | -4/Upper Caves | Identified exit to Upper Caves 33747 | -4/Upper Caves | Entered another Upper Caves area 34148 | -4/Upper Caves | Discovered new exit (range 11) 34165 | -4/Upper Caves | Identified exit to Warlord 34168 | -4/Upper Caves | Entered Warlord 34230 | -4/Warlord | System corruption cleaned by Quarantine Array 35082 | -4/Warlord | Met Warlord 35107 | -4/Warlord | Warlord's base attacked by MAIN.C 35110 | -4/Warlord | Opened Warlord's prototype stash 35119 | -4/Warlord | Found Prototype Reactor 35127 | -4/Warlord | Found Prototype Processor 35127 | -4/Warlord | Identified Exp. Targeting Computer 35140 | -4/Warlord | Found Prototype Device 35140 | -4/Warlord | Identified Thermal Barrier 35143 | -4/Warlord | Found Prototype Processor 35143 | -4/Warlord | Identified Exp. Armor Integrity Analyzer 35151 | -4/Warlord | Found Prototype Hackware 35151 | -4/Warlord | Identified Ghost Barrier 35248 | -4/Warlord | Met EX-DEC 35251 | -4/Warlord | Found Meganuke 35265 | -4/Warlord | Found Prototype Energy Cannon 35265 | -4/Warlord | Identified Vortex Cannon 35271 | -4/Warlord | Found Prototype Energy Cannon 35271 | -4/Warlord | Identified Vortex Driver 35454 | -4/Warlord | Warlord forces counterattacked 35460 | -4/Warlord | Spotted Striker 35474 | -4/Warlord | Spotted Striker 35478 | -4/Warlord | Allies destroyed Striker 35527 | -4/Warlord | P-70 Sage assimilated allied I7-AQE(g) 35536 | -4/Warlord | P-80 Master assimilated allied GD-RDF(g) 35546 | -4/Warlord | Build established: Hacker-Tank 35552 | -4/Warlord | Spotted Executioner 35782 | -4/Warlord | Warlord base infiltrated, sounded retreat 35867 | -4/Warlord | Spotted Striker 35867 | -4/Warlord | Spotted B-90 Cyclops 35868 | -4/Warlord | Spotted Striker 35871 | -4/Warlord | Destroyed Striker 35913 | -4/Warlord | Spotted Executioner 35929 | -4/Warlord | Spotted Striker 35933 | -4/Warlord | Spotted Executioner 35939 | -4/Warlord | Destroyed Executioner 35988 | -4/Warlord | Discovered new exit (range 12) 36004 | -4/Warlord | Identified exit to Proximity Caves 36006 | -4/Warlord | Entered Proximity Caves 36545 | -3/Proximity Caves | Discovered new exit (range 10) 36566 | -3/Proximity Caves | Identified exit to Research 36571 | -3/Proximity Caves | Entered Research 36571 | -3/Research | Evolved 2 slots: Utility x2 36572 | -3/Research | Identified exit to Quarantine 36573 | -3/Research | Loaded intel: 68 non-interactive machine locations 36746 | -3/Research | Spotted B-86 Titan 36772 | -3/Research | Destroyed B-86 Titan 36946 | -3/Research | Crushed by falling debris 37146 | -3/Research | System corruption reached 10% 37254 | -3/Research | Identified exit to Armory 37503 | -3/Research | Spotted B-90 Cyclops 37511 | -3/Research | Entered Quarantine 38117 | -3/Quarantine | Identified Transdimensional Reconstructor 38117 | -3/Quarantine | Warped through subspace 38167 | -3/Quarantine | Cryocooling Duct disabled 38182 | -3/Quarantine | Ambient heat levels rising (+20) 38182 | -3/Quarantine | Non-combat units ordered to evacuate 38218 | -3/Quarantine | Scanned by Researcher 38218 | -3/Quarantine | Garrison activated, responded to threat 38264 | -3/Quarantine | Identified Vortex Chain Reactor 38300 | -3/Quarantine | Lost 7 parts (2p1n2u2w) 38405 | -3/Quarantine | Found Alien Artifact 38413 | -3/Quarantine | Found Transdimensional Reconstructor 38416 | -3/Quarantine | Found Transdimensional Reconstructor 38490 | -3/Quarantine | Identified Hpw. Transdimensional Reconstructor 38606 | -3/Quarantine | Found Prototype Device 38606 | -3/Quarantine | Identified Exp. Thermal Shield 38630 | -3/Quarantine | Found Exp. Armor Integrity Analyzer 39269 | -3/Quarantine | Found Alien Artifact 39353 | -3/Quarantine | Build established: Hacker-Skirmisher 39539 | -3/Quarantine | Found Prototype Hackware 39539 | -3/Quarantine | Identified Exp. System Shield 39551 | -3/Quarantine | Found Prototype Processor 39551 | -3/Quarantine | Identified Exp. Target Analyzer 39644 | -3/Quarantine | Discovered new exit (range 20) 39649 | -3/Quarantine | Repaired Hrd. Heavy Armor Plating? 39688 | -3/Quarantine | Found Alien Artifact 40010 | -3/Quarantine | Identified Core Reset Matrix 40010 | -3/Quarantine | Identified Subatomic Replicator 40010 | -3/Quarantine | Used Core Reset Matrix 40014 | -3/Quarantine | Detected hypermatrix surge 40014 | -3/Quarantine | Sensed 9 artifacts in vicinity 40223 | -3/Quarantine | Build established: Hacker-Tank 40749 | -3/Quarantine | Discovered new exit (range 9) 40849 | -3/Quarantine | Identified exit to Research 40851 | -3/Quarantine | Entered Research 40851 | -2/Research | Warlord forces began assault on 0b10 40851 | -2/Research | Evolved 2 slots: Utility x1, Weapon x1 40863 | -2/Research | Identified exit to Testing 40961 | -2/Research | Research machine network offline 41118 | -2/Research | Found Prototype Processor 41118 | -2/Research | Identified Exp. Core Analyzer 41294 | -2/Research | Borebot progress halted 41310 | -2/Research | Borebot progress halted 41388 | -2/Research | Spotted Executioner 41388 | -2/Research | Spotted Executioner 41396 | -2/Research | Destroyed Executioner 41396 | -2/Research | Destroyed Executioner 41432 | -2/Research | Found Exp. Core Analyzer 41437 | -2/Research | Spotted Executioner 41442 | -2/Research | Spotted Striker 41456 | -2/Research | Spotted Striker 41464 | -2/Research | Spotted Executioner 41465 | -2/Research | Spotted Striker 41465 | -2/Research | Destroyed Striker 41472 | -2/Research | Destroyed Executioner 41570 | -2/Research | Found Unknown Device 41570 | -2/Research | Identified Adv. Force Booster 41579 | -2/Research | Entered Testing 41601 | -2/Testing | Found Prototype Energy Gun 41601 | -2/Testing | Identified Tachyon Dispersion Ray 41839 | -2/Testing | Found Prototype Energy Cannon 41839 | -2/Testing | Identified Cld. Nova Cannon 42684 | -2/Testing | Spotted R2-T2Q(H) 42684 | -2/Testing | Warped through subspace 42957 | -2/Testing | Discovered new exit (range 10) 43001 | -2/Testing | Identified exit to Access 43044 | -2/Testing | Found Prototype Protection 43044 | -2/Testing | Identified SHELL Armor 43351 | -2/Testing | Found Prototype Energy Gun 43351 | -2/Testing | Identified Warp Gun 43371 | -2/Testing | System corruption reached 10% 43471 | -2/Testing | Build established: Hacker-Skirmisher 43574 | -2/Testing | Found Prototype Ballistic Gun 43579 | -2/Testing | Identified Hyp. Multirail 43750 | -2/Testing | Spotted PL-AXBX53DGM9 43976 | -2/Testing | Found Prototype Processor 44205 | -2/Testing | Spotted Fortress 44228 | -2/Testing | Destroyed Fortress 44275 | -2/Testing | Found Prototype Reactor 44275 | -2/Testing | Identified Vortex Chain Reactor 44288 | -2/Testing | Found Vortex Chain Reactor 44496 | -2/Testing | Discovered new exit (range 5) 44503 | -2/Testing | Identified exit to Section 7 44506 | -2/Testing | Entered Section 7 44507 | -2/Section 7 | Sensed 21 artifacts in vicinity 44551 | -2/Section 7 | Incoming investigation squad redirected 44639 | -2/Section 7 | Found Microwarp Drive 44791 | -2/Section 7 | Spotted S7 Guard 44803 | -2/Section 7 | Found Integrated Thermoelectric Network 44803 | -2/Section 7 | Installed Integrated Thermoelectric Network, gained heat-energy exchange potential 44843 | -2/Section 7 | Destroyed S7 Guard 44995 | -2/Section 7 | Spotted S7 Guard 45009 | -2/Section 7 | Found Core Membrane 45009 | -2/Section 7 | Installed Core Membrane, gained immunity to corruption 45025 | -2/Section 7 | Warped through subspace 45033 | -2/Section 7 | Discovered exit to Access (range 10) 45173 | -2/Section 7 | Destroyed Executioner 45180 | -2/Section 7 | Spotted Executioner 45490 | -2/Section 7 | Destroyed Executioner 45564 | -2/Section 7 | Found Hpw. Transdimensional Reconstructor 45570 | -2/Section 7 | Found Transdimensional Reconstructor 45785 | -2/Section 7 | Found Sigix Sheargun 45791 | -2/Section 7 | Found Sigix Sheargun 45836 | -2/Section 7 | Identified Exp. Signal Interpreter 46058 | -2/Section 7 | Found Sigix Sheargun 46063 | -2/Section 7 | Found Sigix Sheargun 46269 | -2/Section 7 | Spotted B-99 Colossus 46288 | -2/Section 7 | First assault squad dispatched 46288 | -2/Section 7 | Destroyed B-99 Colossus 46318 | -2/Section 7 | Incoming assault squad redirected 46394 | -2/Section 7 | Used Subatomic Replicator to replicate Integrity Redistributor 46395 | -2/Section 7 | Found Integrity Redistributor 46691 | -2/Section 7 | Spotted Alpha 7 46692 | -2/Section 7 | Spotted Alpha 7 46701 | -2/Section 7 | Destroyed Alpha 7 46717 | -2/Section 7 | Destroyed Alpha 7 46723 | -2/Section 7 | Found Prototype Energy Gun 46723 | -2/Section 7 | Identified Enh. Gamma Rifle 46735 | -2/Section 7 | Found Enh. Gamma Rifle 46747 | -2/Section 7 | Found Prototype Processor 46747 | -2/Section 7 | Identified Exp. Targeting Computer 47002 | -2/Section 7 | Core integrity fell below 50% 47006 | -2/Section 7 | Scanned by Researcher 47021 | -2/Section 7 | Entered Access 47021 | -1/Access | Evolved 2 slots: Power x1, Utility x1 47286 | -1/Access | Found Prototype Device 47286 | -1/Access | Identified Imp. Particle Accelerator 47312 | -1/Access | First assault squad dispatched 47318 | -1/Access | Found Imp. Particle Accelerator 47330 | -1/Access | Incoming assault squad redirected 47341 | -1/Access | Incoming assault squad redirected 47705 | -1/Access | Build established: Generator-Gunner 47860 | -1/Access | Spotted B-99 Colossus 47866 | -1/Access | Destroyed B-99 Colossus 47894 | -1/Access | Incoming assault squad redirected 47919 | -1/Access | Lost 4 parts (2u2w) 47942 | -1/Access | Destroyed 7 combat bots 47949 | -1/Access | Spotted B-99 Colossus 47968 | -1/Access | Discovered new exit (range 6) 47978 | -1/Access | Identified exit to Command 47996 | -1/Access | Destroyed B-99 Colossus 48011 | -1/Access | Found Prototype Ballistic Gun 48011 | -1/Access | Identified Multirail 48017 | -1/Access | Found Multirail 48047 | -1/Access | Found Multirail 48077 | -1/Access | Entered Command 48102 | -1/Command | Used Integrity Redistributor, redistributed integrity from core (-253) 48180 | -1/Command | Spotted B-99 Colossus 48197 | -1/Command | Crushed by falling debris 48203 | -1/Command | Destroyed B-99 Colossus 48215 | -1/Command | Found Prototype Device 48215 | -1/Command | Identified Thermal Barrier 48357 | -1/Command | First assault squad dispatched 48383 | -1/Command | Incoming assault squad redirected 48795 | -1/Command | Destroyed 14 combat bots 48796 | -1/Command | Spotted M Guard 48796 | -1/Command | Spotted M Guard 48796 | -1/Command | Spotted Combat Programmer 48796 | -1/Command | Spotted Combat Programmer 48818 | -1/Command | Destroyed Combat Programmer 48840 | -1/Command | Destroyed Combat Programmer 48862 | -1/Command | Destroyed M Guard 48873 | -1/Command | Destroyed M Guard 48873 | -1/Command | All MAIN.C guards destroyed 48962 | -1/Command | Found Corrupted Prototype Device 48962 | -1/Command | Identified AEGIS Remote Shield 48969 | -1/Command | Found Corrupted AEGIS Remote Shield 48988 | -1/Command | Found Corrupted Prototype Reactor 48991 | -1/Command | Identified Zero-point Reactor 49001 | -1/Command | Found Corrupted Zero-point Reactor 49004 | -1/Command | Found Corrupted Zero-point Reactor 49057 | -1/Command | Build established: Scavenger-Gunner 49130 | -1/Command | Incoming assault squad redirected 49220 | -1/Command | Met MAIN.C 49227 | -1/Command | 0b10 Conduit disabled 49251 | -1/Command | Destroyed MAIN.C Shell 49253 | -1/Command | MAIN.C activated Command garrisons 49255 | -1/Command | Used Integrity Redistributor, redistributed integrity from core (-199) 49256 | -1/Command | Core integrity fell below 50% 49277 | -1/Command | Destroyed MAIN.C 49293 | -1/Command | Discovered new exit (range 42) 49293 | -1/Command | Discovered new exit (range 106) 49293 | -1/Command | Extracted map data and part IDs from MAIN.C's data core 49312 | -1/Command | Found Exp. Targeting Computer 49466 | -1/Command | Destroyed 20 combat bots 50259 | -1/Command | Found Exp. Targeting Computer 50266 | -1/Command | Found Hyp. Multirail 51015 | -1/Command | Found Exp. Targeting Computer 51117 | -1/Command | Found Exp. Targeting Computer 51140 | -1/Command | Found Exp. Core Analyzer 51785 | -1/Command | Build established: Scavenger-Mutant 52085 | -1/Command | Build established: Scavenger-Gunner 52449 | -1/Command | Build established: Scavenger-Mutant 53001 | -1/Command | Warped through subspace to slip node 53001 | -1/Command | Discovered new exit (range 4) 53008 | -1/Command | Entered Access_0 53009 | -1/Access_0 | Sensed 4 artifacts in vicinity 53011 | -1/Access_0 | Met Architect 53014 | -1/Access_0 | Architect warped through subspace 53023 | -1/Access_0 | Destroyed A8 53053 | -1/Access_0 | Architect warped through subspace 53093 | -1/Access_0 | Architect warped through subspace 53128 | -1/Access_0 | Architect warped through subspace 53166 | -1/Access_0 | Architect warped through subspace 53195 | -1/Access_0 | Architect warped through subspace 53251 | -1/Access_0 | Architect warped through subspace 53276 | -1/Access_0 | Architect warped through subspace 53296 | -1/Access_0 | Build established: Scavenger-Gunner 53305 | -1/Access_0 | Architect warped through subspace 53312 | -1/Access_0 | Found Exp. Weapon Cycler 53316 | -1/Access_0 | Found Exp. Phase Shifter 53320 | -1/Access_0 | Architect warped through subspace 53332 | -1/Access_0 | Architect warped through subspace 53337 | -1/Access_0 | A6 warped into view 53341 | -1/Access_0 | Destroyed A6 53363 | -1/Access_0 | Architect warped through subspace 53375 | -1/Access_0 | Architect warped through subspace 53388 | -1/Access_0 | Architect warped through subspace 53405 | -1/Access_0 | Architect warped through subspace 53433 | -1/Access_0 | Architect warped through subspace 53466 | -1/Access_0 | Architect warped through subspace 53484 | -1/Access_0 | Architect warped through subspace 53504 | -1/Access_0 | Architect warped through subspace 53522 | -1/Access_0 | Subspace Access Node disabled 53527 | -1/Access_0 | Architect warped through subspace 53552 | -1/Access_0 | Architect warped through subspace 53574 | -1/Access_0 | Architect warped through subspace 53594 | -1/Access_0 | Architect warped through subspace 53616 | -1/Access_0 | Architect warped through subspace 53631 | -1/Access_0 | Architect warped through subspace 53648 | -1/Access_0 | Architect warped through subspace 53661 | -1/Access_0 | Architect warped through subspace 53677 | -1/Access_0 | Architect warped through subspace 53695 | -1/Access_0 | Architect warped through subspace 53718 | -1/Access_0 | Subspace Access Node disabled 53729 | -1/Access_0 | Architect warped through subspace 53746 | -1/Access_0 | Architect warped through subspace 53773 | -1/Access_0 | Lost 4 parts (1u3w) 53773 | -1/Access_0 | Subspace Access Node disabled 53782 | -1/Access_0 | Architect warped through subspace 53790 | -1/Access_0 | Core integrity fell below 20% 53823 | -1/Access_0 | Architect warped through subspace 53832 | -1/Access_0 | Architect warped through subspace 53846 | -1/Access_0 | Found Exp. Phase Shifter 53852 | -1/Access_0 | Found Exp. Targeting Computer 53859 | -1/Access_0 | Architect warped through subspace 53860 | -1/Access_0 | Subspace Access Node disabled 53878 | -1/Access_0 | Destroyed Architect 53879 | -1/Access_0 | Architect triggered a singularity event 53880 | -1/Access_0 | Warped through subspace to slip node 53880 | -1/Access_0 | Discovered new exit (range 8) 53882 | -1/Access_0 | Released all parts (21) 53885 | *** | Escaped singularity! Last Messages --------------- 53882_ Released Exp. Targeting Computer. 53882_ Released Exp. Armor Integrity Analyzer. 53882_ Released SHELL Armor. 53882_ Released Vortex Chain Reactor. 53882_ Released Huge Storage Unit. 53882_ Enh. Quantum Rifle crushed and broken. 53882_ Released Exp. Core Analyzer. 53882_ Released AEGIS Remote Shield. 53882_ Released Hdn. Centrium Wheel. 53882_ Released Exp. Core Analyzer. 53882_ Released Exp. Targeting Computer. 53882_ Released Com. Wheel. 53882_ Released Hvy. Quantum Rifle. 53882_ Released Sigix Sheargun. 53882_ Sigix Sheargun crushed and broken. 53882_ Released Hvy. Quantum Rifle. 53882_ Hvy. Quantum Rifle crushed and broken. 53883_ A0_COM: 7. 53884_ A0_COM: 6. 53885_ A0_COM: 5. Map ----- +----------------------------------------------------+ | | | | | | | | | | | | | | | | | | | | | | | | | | | | | | | | | ?????????????????????????????????????????????????? | | ?????????????????????????????????????????????????? | | ?????????????????????????????????????????????????? | | ?????????????????????????????????????????????????? | | ?????????????????????????????????????????????????? | | ?????????????????????????????????????????????????? | | ????????????????????????###??????????????????????? | | ???????????????????????## ##?????????????????????? | | ???????????????????????# #?????????????????????? | | ???????????????????????# @ #?????????????????????? | | ??????????????????????## #?????????????????????? | | ??????????????????????# [ #?????????????????????? | | ??????????????????????#[=[##?????????????????????? | | ??????????????????????##!!=#?????????????????????? | | ??????????????????????#[!!!#?????????????????????? | | ??????????????????????#!!*##?????????????????????? | | ??????????????????????#!%*[#?????????????????????? | | ??????????????????????#!*!##?????????????????????? | | ??????????????????????##[]#??????????????????????? | | ???????????????????????####??????????????????????? | | ?????????????????????????????????????????????????? | | ?????????????????????????????????????????????????? | | ?????????????????????????????????????????????????? | | ?????????????????????????????????????????????????? | | ?????????????????????????????????????????????????? | | ?????????????????????????????????????????????????? | | ?????????????????????????????????????????????????? | | ?????????????????????????????????????????????????? | | ?????????????????????????????????????????????????? | | ?????????????????????????????????????????????????? | | ?????????????????????????????????????????????????? | | ?????????????????????????????????????????????????? | | ?????????????????????????????????????????????????? | | ?????????????????????????????????????????????????? | +----------------------------------------------------+ Best States ------------- Heat Dissipation 159 Coolant Potential 50 Energy Generation 111 Energy Capacity 1900 Matter Stores 300 Matter Capacity 300 Sight Range 16 Robot Scan Range 20 Terrain Scan Range 20 Terrain Scan Density 10 Jamming Range 14 Armor Coverage 1800 Resistance: TH 50 Resistance: EM 20 Weapon Shielding 90 Weapon Cycling 30 Phase Shifting 20 Evasion (%) 60 Targeting Accuracy 36 Core Analysis 12 Armor Integrity Analysis 50 Recoil Reduction 2 Particle Charging 40 Salvage Targeting 4 Offensive Hacking 28 Defensive Hacking 36 Item Schematics ----------------- Enh. Quantum Rifle | -2/Research | Hacked Exp. Thermal Generator | -2/Testing | Archive Imp. Quantum Reactor | -2/Testing | Archive Ragnarok Missile Launcher | -2/Testing | Archive Singularity Reactor | -2/Testing | Hacked Hellfire Missile Launcher | -2/Section 7 | Archive Impact Mace | -2/Section 7 | Archive Robot Schematics ------------------ A-02 Transporter | -2/Section 7 | Archive K-01 Serf | -2/Section 7 | Archive Fabricated ------------ Gatling Laser | x2 | -7/Factory Cld. Plasma Cannon | x1 | -6/Factory Micro-nuke Launcher | x1 | -6/Factory | Preloaded Exp. Sensor Array | x1 | -5/Proximity Caves Alien Tech Used ----------------- Integrated Dissipator Transdimensional Reconstructor Core Reset Matrix Integrated Thermoelectric Network Microwarp Drive Core Membrane Sigix Sheargun Subatomic Replicator Integrity Redistributor High-powered Transdimensional Reconstructor Achievements -------------- None Challenges ------------ None Game ------ Seed ThermicCompositeCompactor Manual? 0 Play Time 05:54:51 Cumulative 1791.4 hours Start 2023.09.11 @ 19:40:23 End 2023.09.12 @ 15:02:01 Sessions 3 Manual Loads 0 Difficulty Rogue Special Mode None Game No. 627 Rogue 627 Adventurer 0 Explorer 0 Win Type 6 Total 139 Types 28/13/62/7/1/2/24/1/1 Lore% 96 Gallery% 96 Achievement% 88 Wizard Run 0 Options --------- ASCII 0 Keyboard 0 Movement Numpad Keybinds 0 Fullscreen 2 Font 18/SmallcapsGlow Map View 76x50 Tactical HUD 1 Map Filters NONE Filters NONE Steam 1 RUN: 8e3ed7b2-a103-4498-8fe9-60836b21b688